Workbook

Sheet GPD SUMIFS
J1: Report Month: | K1: 2
J3: Lower | K3: 2012-02-01 | L3: 2013-02-01 | N3: 2012-01-01 | O3: 2013-01-01
J4: Upper | K4: =EOMONTH(K3,0) -> 2012-02-29 | L4: =EOMONTH(L3,0) -> 2013-02-28 | N4: =EOMONTH(N3,1) -> 2012-02-29 | O4: =EOMONTH(O3,1) -> 2013-02-28
B5: 2012 | C5: 2013 | E5: 2012 | F5: 2013
A6: Customer | B6: Feb 2012 | C6: Feb 2013 | D6: Variance | E6: YTD 2012 | F6: YTD 2013 | G6: Variance | J6: Customer | K6: Feb 2012 | L6: Feb 2013 | M6: Variance | N6: YTD 2012 | O6: YTD 2013 | P6: Variance
A7: AIG | B7: =GETPIVOTDATA("Sum of Revenue",Sheet6!$A$3,"Date",RptMo,"Customer",$A7,"Years",B$5) -> 0 | C7: =GETPIVOTDATA("Sum of Revenue",Sheet6!$A$3,"Date",RptMo,"Customer",$A7,"Years",C$5) -> 0 | D7: =IFERROR(C7/B7-1,0) -> 0 | E7: =GETPIVOTDATA("Sum of YTDRev",Sheet6!$A$3,"Customer",$A7,"Years",E$5) -> 0 | F7: =GETPIVOTDATA("Sum of YTDRev",Sheet6!$A$3,"Customer",$A7,"Years",F$5) -> 0 | G7: =IFERROR(F7/E7-1,0) -> 0 | J7: AIG
A8: AT&T | B8: =GETPIVOTDATA("Sum of Revenue",Sheet6!$A$3,"Date",RptMo,"Customer",$A8,"Years",B$5) -> 0 | C8: =GETPIVOTDATA("Sum of Revenue",Sheet6!$A$3,"Date",RptMo,"Customer",$A8,"Years",C$5) -> 0 | D8: =IFERROR(C8/B8-1,0) -> 0 | E8: =GETPIVOTDATA("Sum of YTDRev",Sheet6!$A$3,"Customer",$A8,"Years",E$5) -> 2401 | F8: =GETPIVOTDATA("Sum of YTDRev",Sheet6!$A$3,"Customer",$A8,"Years",F$5) -> 11784 | G8: =IFERROR(F8/E8-1,0) -> 3.907955019 | J8: AT&T
A9: Bank of America | B9: =GETPIVOTDATA("Sum of Revenue",Sheet6!$A$3,"Date",RptMo,"Customer",$A9,"Years",B$5) -> 0 | C9: =GETPIVOTDATA("Sum of Revenue",Sheet6!$A$3,"Date",RptMo,"Customer",$A9,"Years",C$5) -> 7152 | D9: 0 | E9: =GETPIVOTDATA("Sum of YTDRev",Sheet6!$A$3,"Customer",$A9,"Years",E$5) -> 0 | F9: =GETPIVOTDATA("Sum of YTDRev",Sheet6!$A$3,"Customer",$A9,"Years",F$5) -> 7152 | G9: 0 | J9: Bank of America
A10: Boeing | B10: =GETPIVOTDATA("Sum of Revenue",Sheet6!$A$3,"Date",RptMo,"Customer",$A10,"Years",B$5) -> 16936 | C10: =GETPIVOTDATA("Sum of Revenue",Sheet6!$A$3,"Date",RptMo,"Customer",$A10,"Years",C$5) -> 0 | D10: -1 | E10: =GETPIVOTDATA("Sum of YTDRev",Sheet6!$A$3,"Customer",$A10,"Years",E$5) -> 16936 | F10: =GETPIVOTDATA("Sum of YTDRev",Sheet6!$A$3,"Customer",$A10,"Years",F$5) -> 0 | G10: -1 | J10: Boeing
A11: Chevron | B11: =GETPIVOTDATA("Sum of Revenue",Sheet6!$A$3,"Date",RptMo,"Customer",$A11,"Years",B$5) -> 20610 | C11: =GETPIVOTDATA("Sum of Revenue",Sheet6!$A$3,"Date",RptMo,"Customer",$A11,"Years",C$5) -> 0 | D11: -1 | E11: =GETPIVOTDATA("Sum of YTDRev",Sheet6!$A$3,"Customer",$A11,"Years",E$5) -> 20610 | F11: =GETPIVOTDATA("Sum of YTDRev",Sheet6!$A$3,"Customer",$A11,"Years",F$5) -> 0 | G11: -1 | J11: Chevron
A12: CitiGroup | B12: =GETPIVOTDATA("Sum of Revenue",Sheet6!$A$3,"Date",RptMo,"Customer",$A12,"Years",B$5) -> 15684 | C12: =GETPIVOTDATA("Sum of Revenue",Sheet6!$A$3,"Date",RptMo,"Customer",$A12,"Years",C$5) -> 12798 | D12: -0.1840091813 | E12: =GETPIVOTDATA("Sum of YTDRev",Sheet6!$A$3,"Customer",$A12,"Years",E$5) -> 48082 | F12: =GETPIVOTDATA("Sum of YTDRev",Sheet6!$A$3,"Customer",$A12,"Years",F$5) -> 49553 | G12: 0.03059356932 | J12: CitiGroup
A13: Compaq | B13: =GETPIVOTDATA("Sum of Revenue",Sheet6!$A$3,"Date",RptMo,"Customer",$A13,"Years",B$5) -> 0 | C13: =GETPIVOTDATA("Sum of Revenue",Sheet6!$A$3,"Date",RptMo,"Customer",$A13,"Years",C$5) -> 0 | D13: 0 | E13: =GETPIVOTDATA("Sum of YTDRev",Sheet6!$A$3,"Customer",$A13,"Years",E$5) -> 0 | F13: =GETPIVOTDATA("Sum of YTDRev",Sheet6!$A$3,"Customer",$A13,"Years",F$5) -> 0 | G13: 0 | J13: Compaq
A14: Duke Energy | B14: =GETPIVOTDATA("Sum of Revenue",Sheet6!$A$3,"Date",RptMo,"Customer",$A14,"Years",B$5) -> 0 | C14: =GETPIVOTDATA("Sum of Revenue",Sheet6!$A$3,"Date",RptMo,"Customer",$A14,"Years",C$5) -> 0 | D14: 0 | E14: =GETPIVOTDATA("Sum of YTDRev",Sheet6!$A$3,"Customer",$A14,"Years",E$5) -> 0 | F14: =GETPIVOTDATA("Sum of YTDRev",Sheet6!$A$3,"Customer",$A14,"Years",F$5) -> 0 | G14: 0 | J14: Duke Energy
A15: Exxon | B15: =GETPIVOTDATA("Sum of Revenue",Sheet6!$A$3,"Date",RptMo,"Customer",$A15,"Years",B$5) -> 22554 | C15: =GETPIVOTDATA("Sum of Revenue",Sheet6!$A$3,"Date",RptMo,"Customer",$A15,"Years",C$5) -> 13314 | D15: -0.4096834264 | E15: =GETPIVOTDATA("Sum of YTDRev",Sheet6!$A$3,"Customer",$A15,"Years",E$5) -> 22554 | F15: =GETPIVOTDATA("Sum of YTDRev",Sheet6!$A$3,"Customer",$A15,"Years",F$5) -> 52186 | G15: 1.313824599 | J15: Exxon
A16: Ford | B16: =GETPIVOTDATA("Sum of Revenue",Sheet6!$A$3,"Date",RptMo,"Customer",$A16,"Years",B$5) -> 35115 | C16: =GETPIVOTDATA("Sum of Revenue",Sheet6!$A$3,"Date",RptMo,"Customer",$A16,"Years",C$5) -> 39704 | D16: 0.1306848925 | E16: =GETPIVOTDATA("Sum of YTDRev",Sheet6!$A$3,"Customer",$A16,"Years",E$5) -> 57925 | F16: =GETPIVOTDATA("Sum of YTDRev",Sheet6!$A$3,"Customer",$A16,"Years",F$5) -> 39704 | G16: -0.3145619335 | J16: Ford
A17: General Electric | B17: =GETPIVOTDATA("Sum of Revenue",Sheet6!$A$3,"Date",RptMo,"Customer",$A17,"Years",B$5) -> 36180 | C17: =GETPIVOTDATA("Sum of Revenue",Sheet6!$A$3,"Date",RptMo,"Customer",$A17,"Years",C$5) -> 52344 | D17: 0.4467661692 | E17: =GETPIVOTDATA("Sum of YTDRev",Sheet6!$A$3,"Customer",$A17,"Years",E$5) -> 36180 | F17: =GETPIVOTDATA("Sum of YTDRev",Sheet6!$A$3,"Customer",$A17,"Years",F$5) -> 93398 | G17: 1.581481481 | J17: General Electric
A18: General Motors | B18: =GETPIVOTDATA("Sum of Revenue",Sheet6!$A$3,"Date",RptMo,"Customer",$A18,"Years",B$5) -> 26613 | C18: =GETPIVOTDATA("Sum of Revenue",Sheet6!$A$3,"Date",RptMo,"Customer",$A18,"Years",C$5) -> 41101 | D18: 0.5443955961 | E18: =GETPIVOTDATA("Sum of YTDRev",Sheet6!$A$3,"Customer",$A18,"Years",E$5) -> 98867 | F18: =GETPIVOTDATA("Sum of YTDRev",Sheet6!$A$3,"Customer",$A18,"Years",F$5) -> 53773 | G18: -0.4561077002 | J18: General Motors
A19: Home Depot | B19: =GETPIVOTDATA("Sum of Revenue",Sheet6!$A$3,"Date",RptMo,"Customer",$A19,"Years",B$5) -> 0 | C19: =GETPIVOTDATA("Sum of Revenue",Sheet6!$A$3,"Date",RptMo,"Customer",$A19,"Years",C$5) -> 0 | D19: 0 | E19: =GETPIVOTDATA("Sum of YTDRev",Sheet6!$A$3,"Customer",$A19,"Years",E$5) -> 0 | F19: =GETPIVOTDATA("Sum of YTDRev",Sheet6!$A$3,"Customer",$A19,"Years",F$5) -> 0 | G19: 0 | J19: Home Depot
A20: HP | B20: =GETPIVOTDATA("Sum of Revenue",Sheet6!$A$3,"Date",RptMo,"Customer",$A20,"Years",B$5) -> 0 | C20: =GETPIVOTDATA("Sum of Revenue",Sheet6!$A$3,"Date",RptMo,"Customer",$A20,"Years",C$5) -> 0 | D20: 0 | E20: =GETPIVOTDATA("Sum of YTDRev",Sheet6!$A$3,"Customer",$A20,"Years",E$5) -> 0 | F20: =GETPIVOTDATA("Sum of YTDRev",Sheet6!$A$3,"Customer",$A20,"Years",F$5) -> 21015 | G20: 0 | J20: HP
A21: IBM | B21: =GETPIVOTDATA("Sum of Revenue",Sheet6!$A$3,"Date",RptMo,"Customer",$A21,"Years",B$5) -> 19890 | C21: =GETPIVOTDATA("Sum of Revenue",Sheet6!$A$3,"Date",RptMo,"Customer",$A21,"Years",C$5) -> 38315 | D21: 0.9263448969 | E21: =GETPIVOTDATA("Sum of YTDRev",Sheet6!$A$3,"Customer",$A21,"Years",E$5) -> 46891 | F21: =GETPIVOTDATA("Sum of YTDRev",Sheet6!$A$3,"Customer",$A21,"Years",F$5) -> 45175 | G21: -0.03659550873 | J21: IBM
A22: Kroger | B22: =GETPIVOTDATA("Sum of Revenue",Sheet6!$A$3,"Date",RptMo,"Customer",$A22,"Years",B$5) -> 0 | C22: =GETPIVOTDATA("Sum of Revenue",Sheet6!$A$3,"Date",RptMo,"Customer",$A22,"Years",C$5) -> 0 | D22: 0 | E22: =GETPIVOTDATA("Sum of YTDRev",Sheet6!$A$3,"Customer",$A22,"Years",E$5) -> 0 | F22: =GETPIVOTDATA("Sum of YTDRev",Sheet6!$A$3,"Customer",$A22,"Years",F$5) -> 0 | G22: 0 | J22: Kroger
A23: Lucent | B23: =GETPIVOTDATA("Sum of Revenue",Sheet6!$A$3,"Date",RptMo,"Customer",$A23,"Years",B$5) -> 0 | C23: =GETPIVOTDATA("Sum of Revenue",Sheet6!$A$3,"Date",RptMo,"Customer",$A23,"Years",C$5) -> 0 | D23: 0 | E23: =GETPIVOTDATA("Sum of YTDRev",Sheet6!$A$3,"Customer",$A23,"Years",E$5) -> 0 | F23: =GETPIVOTDATA("Sum of YTDRev",Sheet6!$A$3,"Customer",$A23,"Years",F$5) -> 0 | G23: 0 | J23: Lucent
A24: Merck | B24: =GETPIVOTDATA("Sum of Revenue",Sheet6!$A$3,"Date",RptMo,"Customer",$A24,"Years",B$5) -> 0 | C24: =GETPIVOTDATA("Sum of Revenue",Sheet6!$A$3,"Date",RptMo,"Customer",$A24,"Years",C$5) -> 0 | D24: 0 | E24: =GETPIVOTDATA("Sum of YTDRev",Sheet6!$A$3,"Customer",$A24,"Years",E$5) -> 22104 | F24: =GETPIVOTDATA("Sum of YTDRev",Sheet6!$A$3,"Customer",$A24,"Years",F$5) -> 0 | G24: -1 | J24: Merck
A25: Motorola | B25: =GETPIVOTDATA("Sum of Revenue",Sheet6!$A$3,"Date",RptMo,"Customer",$A25,"Years",B$5) -> 0 | C25: =GETPIVOTDATA("Sum of Revenue",Sheet6!$A$3,"Date",RptMo,"Customer",$A25,"Years",C$5) -> 0 | D25: 0 | E25: =GETPIVOTDATA("Sum of YTDRev",Sheet6!$A$3,"Customer",$A25,"Years",E$5) -> 0 | F25: =GETPIVOTDATA("Sum of YTDRev",Sheet6!$A$3,"Customer",$A25,"Years",F$5) -> 0 | G25: 0 | J25: Motorola
A26: P&G | B26: =GETPIVOTDATA("Sum of Revenue",Sheet6!$A$3,"Date",RptMo,"Customer",$A26,"Years",B$5) -> 0 | C26: =GETPIVOTDATA("Sum of Revenue",Sheet6!$A$3,"Date",RptMo,"Customer",$A26,"Years",C$5) -> 0 | D26: 0 | E26: =GETPIVOTDATA("Sum of YTDRev",Sheet6!$A$3,"Customer",$A26,"Years",E$5) -> 0 | F26: =GETPIVOTDATA("Sum of YTDRev",Sheet6!$A$3,"Customer",$A26,"Years",F$5) -> 0 | G26: 0 | J26: P&G
A27: Phillip Morris | B27: =GETPIVOTDATA("Sum of Revenue",Sheet6!$A$3,"Date",RptMo,"Customer",$A27,"Years",B$5) -> 0 | C27: =GETPIVOTDATA("Sum of Revenue",Sheet6!$A$3,"Date",RptMo,"Customer",$A27,"Years",C$5) -> 4614 | D27: 0 | E27: =GETPIVOTDATA("Sum of YTDRev",Sheet6!$A$3,"Customer",$A27,"Years",E$5) -> 0 | F27: =GETPIVOTDATA("Sum of YTDRev",Sheet6!$A$3,"Customer",$A27,"Years",F$5) -> 4614 | G27: 0 | J27: Phillip Morris
A28: SBC Communications | B28: =GETPIVOTDATA("Sum of Revenue",Sheet6!$A$3,"Date",RptMo,"Customer",$A28,"Years",B$5) -> 0 | C28: =GETPIVOTDATA("Sum of Revenue",Sheet6!$A$3,"Date",RptMo,"Customer",$A28,"Years",C$5) -> 0 | D28: 0 | E28: =GETPIVOTDATA("Sum of YTDRev",Sheet6!$A$3,"Customer",$A28,"Years",E$5) -> 14440 | F28: =GETPIVOTDATA("Sum of YTDRev",Sheet6!$A$3,"Customer",$A28,"Years",F$5) -> 0 | G28: -1 | J28: SBC Communications
A29: Sears | B29: =GETPIVOTDATA("Sum of Revenue",Sheet6!$A$3,"Date",RptMo,"Customer",$A29,"Years",B$5) -> 0 | C29: =GETPIVOTDATA("Sum of Revenue",Sheet6!$A$3,"Date",RptMo,"Customer",$A29,"Years",C$5) -> 0 | D29: 0 | E29: =GETPIVOTDATA("Sum of YTDRev",Sheet6!$A$3,"Customer",$A29,"Years",E$5) -> 0 | F29: =GETPIVOTDATA("Sum of YTDRev",Sheet6!$A$3,"Customer",$A29,"Years",F$5) -> 0 | G29: 0 | J29: Sears
A30: State Farm | B30: =GETPIVOTDATA("Sum of Revenue",Sheet6!$A$3,"Date",RptMo,"Customer",$A30,"Years",B$5) -> 0 | C30: =GETPIVOTDATA("Sum of Revenue",Sheet6!$A$3,"Date",RptMo,"Customer",$A30,"Years",C$5) -> 0 | D30: 0 | E30: =GETPIVOTDATA("Sum of YTDRev",Sheet6!$A$3,"Customer",$A30,"Years",E$5) -> 21730 | F30: =GETPIVOTDATA("Sum of YTDRev",Sheet6!$A$3,"Customer",$A30,"Years",F$5) -> 0 | G30: -1 | J30: State Farm
A31: Texaco | B31: =GETPIVOTDATA("Sum of Revenue",Sheet6!$A$3,"Date",RptMo,"Customer",$A31,"Years",B$5) -> 0 | C31: =GETPIVOTDATA("Sum of Revenue",Sheet6!$A$3,"Date",RptMo,"Customer",$A31,"Years",C$5) -> 0 | D31: 0 | E31: =GETPIVOTDATA("Sum of YTDRev",Sheet6!$A$3,"Customer",$A31,"Years",E$5) -> 16288 | F31: =GETPIVOTDATA("Sum of YTDRev",Sheet6!$A$3,"Customer",$A31,"Years",F$5) -> 13806 | G31: -0.1523821218 | J31: Texaco
A32: Verizon | B32: =GETPIVOTDATA("Sum of Revenue",Sheet6!$A$3,"Date",RptMo,"Customer",$A32,"Years",B$5) -> 0 | C32: =GETPIVOTDATA("Sum of Revenue",Sheet6!$A$3,"Date",RptMo,"Customer",$A32,"Years",C$5) -> 38457 | D32: 0 | E32: =GETPIVOTDATA("Sum of YTDRev",Sheet6!$A$3,"Customer",$A32,"Years",E$5) -> 30804 | F32: =GETPIVOTDATA("Sum of YTDRev",Sheet6!$A$3,"Customer",$A32,"Years",F$5) -> 38457 | G32: 0.2484417608 | J32: Verizon
A33: Wal-Mart | B33: =GETPIVOTDATA("Sum of Revenue",Sheet6!$A$3,"Date",RptMo,"Customer",$A33,"Years",B$5) -> 110263 | C33: =GETPIVOTDATA("Sum of Revenue",Sheet6!$A$3,"Date",RptMo,"Customer",$A33,"Years",C$5) -> 9246 | D33: -0.916145942 | E33: =GETPIVOTDATA("Sum of YTDRev",Sheet6!$A$3,"Customer",$A33,"Years",E$5) -> 143947 | F33: =GETPIVOTDATA("Sum of YTDRev",Sheet6!$A$3,"Customer",$A33,"Years",F$5) -> 70675 | G33: -0.5090206812 | J33: Wal-Mart
A34: Grand Total | B34: =SUM(B7:B33) -> 303845 | C34: 257045 | E34: =SUM(E7:E33) -> 599759 | F34: 501292 | J34: Grand Total | K34: =SUM(K7:K33) -> 0 | L34: 0 | N34: =SUM(N7:N33) -> 0 | O34: 0

Sheet GPD SUMIFS (an)
J1: Report Month: | K1: 2
J3: Lower | K3: 2012-02-01 | L3: 2013-02-01 | N3: 2012-01-01 | O3: 2013-01-01
J4: Upper | K4: =EOMONTH(K3,0) -> 2012-02-29 | L4: =EOMONTH(L3,0) -> 2013-02-28 | N4: =EOMONTH(N3,1) -> 2012-02-29 | O4: =EOMONTH(O3,1) -> 2013-02-28
B5: 2012 | C5: 2013 | E5: 2012 | F5: 2013
A6: Customer | B6: Feb 2012 | C6: Feb 2013 | D6: Variance | E6: YTD 2012 | F6: YTD 2013 | G6: Variance | J6: Customer | K6: Feb 2012 | L6: Feb 2013 | M6: Variance | N6: YTD 2012 | O6: YTD 2013 | P6: Variance
A7: AIG | B7: =GETPIVOTDATA("Sum of Revenue",Sheet6!$A$3,"Date",RptMo,"Customer",$A7,"Years",B$5) -> 0 | C7: =GETPIVOTDATA("Sum of Revenue",Sheet6!$A$3,"Date",RptMo,"Customer",$A7,"Years",C$5) -> 0 | D7: =IFERROR(C7/B7-1,0) -> 0 | E7: =GETPIVOTDATA("Sum of YTDRev",Sheet6!$A$3,"Customer",$A7,"Years",E$5) -> 0 | F7: =GETPIVOTDATA("Sum of YTDRev",Sheet6!$A$3,"Customer",$A7,"Years",F$5) -> 0 | G7: =IFERROR(F7/E7-1,0) -> 0 | J7: AIG | K7: =SUMIFS(Data!$F$2:$F$564,Data!$C$2:$C$564,">="&K$3,Data!$C$2:$C$564,"<="&K$4,Data!$D$2:$D$564,$J7) -> 0 | L7: =SUMIFS(Data!$F$2:$F$564,Data!$C$2:$C$564,">="&L$3,Data!$C$2:$C$564,"<="&L$4,Data!$D$2:$D$564,$J7) -> 0 | M7: =IFERROR(L7/K7-1,0) -> 0 | N7: =SUMIFS(Data!$F$2:$F$564,Data!$C$2:$C$564,">="&N$3,Data!$C$2:$C$564,"<="&N$4,Data!$D$2:$D$564,$J7) -> 0 | O7: =SUMIFS(Data!$F$2:$F$564,Data!$C$2:$C$564,">="&O$3,Data!$C$2:$C$564,"<="&O$4,Data!$D$2:$D$564,$J7) -> 0 | P7: =IFERROR(O7/N7-1,0) -> 0
A8: AT&T | B8: =GETPIVOTDATA("Sum of Revenue",Sheet6!$A$3,"Date",RptMo,"Customer",$A8,"Years",B$5) -> 0 | C8: =GETPIVOTDATA("Sum of Revenue",Sheet6!$A$3,"Date",RptMo,"Customer",$A8,"Years",C$5) -> 0 | D8: =IFERROR(C8/B8-1,0) -> 0 | E8: =GETPIVOTDATA("Sum of YTDRev",Sheet6!$A$3,"Customer",$A8,"Years",E$5) -> 2401 | F8: =GETPIVOTDATA("Sum of YTDRev",Sheet6!$A$3,"Customer",$A8,"Years",F$5) -> 11784 | G8: =IFERROR(F8/E8-1,0) -> 3.907955019 | J8: AT&T | K8: =SUMIFS(Data!$F$2:$F$564,Data!$C$2:$C$564,">="&K$3,Data!$C$2:$C$564,"<="&K$4,Data!$D$2:$D$564,$J8) -> 0 | L8: =SUMIFS(Data!$F$2:$F$564,Data!$C$2:$C$564,">="&L$3,Data!$C$2:$C$564,"<="&L$4,Data!$D$2:$D$564,$J8) -> 0 | M8: =IFERROR(L8/K8-1,0) -> 0 | N8: =SUMIFS(Data!$F$2:$F$564,Data!$C$2:$C$564,">="&N$3,Data!$C$2:$C$564,"<="&N$4,Data!$D$2:$D$564,$J8) -> 2401 | O8: =SUMIFS(Data!$F$2:$F$564,Data!$C$2:$C$564,">="&O$3,Data!$C$2:$C$564,"<="&O$4,Data!$D$2:$D$564,$J8) -> 11784 | P8: =IFERROR(O8/N8-1,0) -> 3.907955019
A9: Bank of America | B9: =GETPIVOTDATA("Sum of Revenue",Sheet6!$A$3,"Date",RptMo,"Customer",$A9,"Years",B$5) -> 0 | C9: =GETPIVOTDATA("Sum of Revenue",Sheet6!$A$3,"Date",RptMo,"Customer",$A9,"Years",C$5) -> 7152 | D9: 0 | E9: =GETPIVOTDATA("Sum of YTDRev",Sheet6!$A$3,"Customer",$A9,"Years",E$5) -> 0 | F9: =GETPIVOTDATA("Sum of YTDRev",Sheet6!$A$3,"Customer",$A9,"Years",F$5) -> 7152 | G9: 0 | J9: Bank of America | K9: =SUMIFS(Data!$F$2:$F$564,Data!$C$2:$C$564,">="&K$3,Data!$C$2:$C$564,"<="&K$4,Data!$D$2:$D$564,$J9) -> 0 | L9: =SUMIFS(Data!$F$2:$F$564,Data!$C$2:$C$564,">="&L$3,Data!$C$2:$C$564,"<="&L$4,Data!$D$2:$D$564,$J9) -> 7152 | M9: 0 | N9: =SUMIFS(Data!$F$2:$F$564,Data!$C$2:$C$564,">="&N$3,Data!$C$2:$C$564,"<="&N$4,Data!$D$2:$D$564,$J9) -> 0 | O9: =SUMIFS(Data!$F$2:$F$564,Data!$C$2:$C$564,">="&O$3,Data!$C$2:$C$564,"<="&O$4,Data!$D$2:$D$564,$J9) -> 7152 | P9: 0
A10: Boeing | B10: =GETPIVOTDATA("Sum of Revenue",Sheet6!$A$3,"Date",RptMo,"Customer",$A10,"Years",B$5) -> 16936 | C10: =GETPIVOTDATA("Sum of Revenue",Sheet6!$A$3,"Date",RptMo,"Customer",$A10,"Years",C$5) -> 0 | D10: -1 | E10: =GETPIVOTDATA("Sum of YTDRev",Sheet6!$A$3,"Customer",$A10,"Years",E$5) -> 16936 | F10: =GETPIVOTDATA("Sum of YTDRev",Sheet6!$A$3,"Customer",$A10,"Years",F$5) -> 0 | G10: -1 | J10: Boeing | K10: =SUMIFS(Data!$F$2:$F$564,Data!$C$2:$C$564,">="&K$3,Data!$C$2:$C$564,"<="&K$4,Data!$D$2:$D$564,$J10) -> 16936 | L10: =SUMIFS(Data!$F$2:$F$564,Data!$C$2:$C$564,">="&L$3,Data!$C$2:$C$564,"<="&L$4,Data!$D$2:$D$564,$J10) -> 0 | M10: -1 | N10: =SUMIFS(Data!$F$2:$F$564,Data!$C$2:$C$564,">="&N$3,Data!$C$2:$C$564,"<="&N$4,Data!$D$2:$D$564,$J10) -> 16936 | O10: =SUMIFS(Data!$F$2:$F$564,Data!$C$2:$C$564,">="&O$3,Data!$C$2:$C$564,"<="&O$4,Data!$D$2:$D$564,$J10) -> 0 | P10: -1
A11: Chevron | B11: =GETPIVOTDATA("Sum of Revenue",Sheet6!$A$3,"Date",RptMo,"Customer",$A11,"Years",B$5) -> 20610 | C11: =GETPIVOTDATA("Sum of Revenue",Sheet6!$A$3,"Date",RptMo,"Customer",$A11,"Years",C$5) -> 0 | D11: -1 | E11: =GETPIVOTDATA("Sum of YTDRev",Sheet6!$A$3,"Customer",$A11,"Years",E$5) -> 20610 | F11: =GETPIVOTDATA("Sum of YTDRev",Sheet6!$A$3,"Customer",$A11,"Years",F$5) -> 0 | G11: -1 | J11: Chevron | K11: =SUMIFS(Data!$F$2:$F$564,Data!$C$2:$C$564,">="&K$3,Data!$C$2:$C$564,"<="&K$4,Data!$D$2:$D$564,$J11) -> 20610 | L11: =SUMIFS(Data!$F$2:$F$564,Data!$C$2:$C$564,">="&L$3,Data!$C$2:$C$564,"<="&L$4,Data!$D$2:$D$564,$J11) -> 0 | M11: -1 | N11: =SUMIFS(Data!$F$2:$F$564,Data!$C$2:$C$564,">="&N$3,Data!$C$2:$C$564,"<="&N$4,Data!$D$2:$D$564,$J11) -> 20610 | O11: =SUMIFS(Data!$F$2:$F$564,Data!$C$2:$C$564,">="&O$3,Data!$C$2:$C$564,"<="&O$4,Data!$D$2:$D$564,$J11) -> 0 | P11: -1
A12: CitiGroup | B12: =GETPIVOTDATA("Sum of Revenue",Sheet6!$A$3,"Date",RptMo,"Customer",$A12,"Years",B$5) -> 15684 | C12: =GETPIVOTDATA("Sum of Revenue",Sheet6!$A$3,"Date",RptMo,"Customer",$A12,"Years",C$5) -> 12798 | D12: -0.1840091813 | E12: =GETPIVOTDATA("Sum of YTDRev",Sheet6!$A$3,"Customer",$A12,"Years",E$5) -> 48082 | F12: =GETPIVOTDATA("Sum of YTDRev",Sheet6!$A$3,"Customer",$A12,"Years",F$5) -> 49553 | G12: 0.03059356932 | J12: CitiGroup | K12: =SUMIFS(Data!$F$2:$F$564,Data!$C$2:$C$564,">="&K$3,Data!$C$2:$C$564,"<="&K$4,Data!$D$2:$D$564,$J12) -> 15684 | L12: =SUMIFS(Data!$F$2:$F$564,Data!$C$2:$C$564,">="&L$3,Data!$C$2:$C$564,"<="&L$4,Data!$D$2:$D$564,$J12) -> 12798 | M12: -0.1840091813 | N12: =SUMIFS(Data!$F$2:$F$564,Data!$C$2:$C$564,">="&N$3,Data!$C$2:$C$564,"<="&N$4,Data!$D$2:$D$564,$J12) -> 48082 | O12: =SUMIFS(Data!$F$2:$F$564,Data!$C$2:$C$564,">="&O$3,Data!$C$2:$C$564,"<="&O$4,Data!$D$2:$D$564,$J12) -> 49553 | P12: 0.03059356932
A13: Compaq | B13: =GETPIVOTDATA("Sum of Revenue",Sheet6!$A$3,"Date",RptMo,"Customer",$A13,"Years",B$5) -> 0 | C13: =GETPIVOTDATA("Sum of Revenue",Sheet6!$A$3,"Date",RptMo,"Customer",$A13,"Years",C$5) -> 0 | D13: 0 | E13: =GETPIVOTDATA("Sum of YTDRev",Sheet6!$A$3,"Customer",$A13,"Years",E$5) -> 0 | F13: =GETPIVOTDATA("Sum of YTDRev",Sheet6!$A$3,"Customer",$A13,"Years",F$5) -> 0 | G13: 0 | J13: Compaq | K13: =SUMIFS(Data!$F$2:$F$564,Data!$C$2:$C$564,">="&K$3,Data!$C$2:$C$564,"<="&K$4,Data!$D$2:$D$564,$J13) -> 0 | L13: =SUMIFS(Data!$F$2:$F$564,Data!$C$2:$C$564,">="&L$3,Data!$C$2:$C$564,"<="&L$4,Data!$D$2:$D$564,$J13) -> 0 | M13: 0 | N13: =SUMIFS(Data!$F$2:$F$564,Data!$C$2:$C$564,">="&N$3,Data!$C$2:$C$564,"<="&N$4,Data!$D$2:$D$564,$J13) -> 0 | O13: =SUMIFS(Data!$F$2:$F$564,Data!$C$2:$C$564,">="&O$3,Data!$C$2:$C$564,"<="&O$4,Data!$D$2:$D$564,$J13) -> 0 | P13: 0
A14: Duke Energy | B14: =GETPIVOTDATA("Sum of Revenue",Sheet6!$A$3,"Date",RptMo,"Customer",$A14,"Years",B$5) -> 0 | C14: =GETPIVOTDATA("Sum of Revenue",Sheet6!$A$3,"Date",RptMo,"Customer",$A14,"Years",C$5) -> 0 | D14: 0 | E14: =GETPIVOTDATA("Sum of YTDRev",Sheet6!$A$3,"Customer",$A14,"Years",E$5) -> 0 | F14: =GETPIVOTDATA("Sum of YTDRev",Sheet6!$A$3,"Customer",$A14,"Years",F$5) -> 0 | G14: 0 | J14: Duke Energy | K14: =SUMIFS(Data!$F$2:$F$564,Data!$C$2:$C$564,">="&K$3,Data!$C$2:$C$564,"<="&K$4,Data!$D$2:$D$564,$J14) -> 0 | L14: =SUMIFS(Data!$F$2:$F$564,Data!$C$2:$C$564,">="&L$3,Data!$C$2:$C$564,"<="&L$4,Data!$D$2:$D$564,$J14) -> 0 | M14: 0 | N14: =SUMIFS(Data!$F$2:$F$564,Data!$C$2:$C$564,">="&N$3,Data!$C$2:$C$564,"<="&N$4,Data!$D$2:$D$564,$J14) -> 0 | O14: =SUMIFS(Data!$F$2:$F$564,Data!$C$2:$C$564,">="&O$3,Data!$C$2:$C$564,"<="&O$4,Data!$D$2:$D$564,$J14) -> 0 | P14: 0
A15: Exxon | B15: =GETPIVOTDATA("Sum of Revenue",Sheet6!$A$3,"Date",RptMo,"Customer",$A15,"Years",B$5) -> 22554 | C15: =GETPIVOTDATA("Sum of Revenue",Sheet6!$A$3,"Date",RptMo,"Customer",$A15,"Years",C$5) -> 13314 | D15: -0.4096834264 | E15: =GETPIVOTDATA("Sum of YTDRev",Sheet6!$A$3,"Customer",$A15,"Years",E$5) -> 22554 | F15: =GETPIVOTDATA("Sum of YTDRev",Sheet6!$A$3,"Customer",$A15,"Years",F$5) -> 52186 | G15: 1.313824599 | J15: Exxon | K15: =SUMIFS(Data!$F$2:$F$564,Data!$C$2:$C$564,">="&K$3,Data!$C$2:$C$564,"<="&K$4,Data!$D$2:$D$564,$J15) -> 22554 | L15: =SUMIFS(Data!$F$2:$F$564,Data!$C$2:$C$564,">="&L$3,Data!$C$2:$C$564,"<="&L$4,Data!$D$2:$D$564,$J15) -> 13314 | M15: -0.4096834264 | N15: =SUMIFS(Data!$F$2:$F$564,Data!$C$2:$C$564,">="&N$3,Data!$C$2:$C$564,"<="&N$4,Data!$D$2:$D$564,$J15) -> 22554 | O15: =SUMIFS(Data!$F$2:$F$564,Data!$C$2:$C$564,">="&O$3,Data!$C$2:$C$564,"<="&O$4,Data!$D$2:$D$564,$J15) -> 52186 | P15: 1.313824599
A16: Ford | B16: =GETPIVOTDATA("Sum of Revenue",Sheet6!$A$3,"Date",RptMo,"Customer",$A16,"Years",B$5) -> 35115 | C16: =GETPIVOTDATA("Sum of Revenue",Sheet6!$A$3,"Date",RptMo,"Customer",$A16,"Years",C$5) -> 39704 | D16: 0.1306848925 | E16: =GETPIVOTDATA("Sum of YTDRev",Sheet6!$A$3,"Customer",$A16,"Years",E$5) -> 57925 | F16: =GETPIVOTDATA("Sum of YTDRev",Sheet6!$A$3,"Customer",$A16,"Years",F$5) -> 39704 | G16: -0.3145619335 | J16: Ford | K16: =SUMIFS(Data!$F$2:$F$564,Data!$C$2:$C$564,">="&K$3,Data!$C$2:$C$564,"<="&K$4,Data!$D$2:$D$564,$J16) -> 35115 | L16: =SUMIFS(Data!$F$2:$F$564,Data!$C$2:$C$564,">="&L$3,Data!$C$2:$C$564,"<="&L$4,Data!$D$2:$D$564,$J16) -> 39704 | M16: 0.1306848925 | N16: =SUMIFS(Data!$F$2:$F$564,Data!$C$2:$C$564,">="&N$3,Data!$C$2:$C$564,"<="&N$4,Data!$D$2:$D$564,$J16) -> 57925 | O16: =SUMIFS(Data!$F$2:$F$564,Data!$C$2:$C$564,">="&O$3,Data!$C$2:$C$564,"<="&O$4,Data!$D$2:$D$564,$J16) -> 39704 | P16: -0.3145619335
A17: General Electric | B17: =GETPIVOTDATA("Sum of Revenue",Sheet6!$A$3,"Date",RptMo,"Customer",$A17,"Years",B$5) -> 36180 | C17: =GETPIVOTDATA("Sum of Revenue",Sheet6!$A$3,"Date",RptMo,"Customer",$A17,"Years",C$5) -> 52344 | D17: 0.4467661692 | E17: =GETPIVOTDATA("Sum of YTDRev",Sheet6!$A$3,"Customer",$A17,"Years",E$5) -> 36180 | F17: =GETPIVOTDATA("Sum of YTDRev",Sheet6!$A$3,"Customer",$A17,"Years",F$5) -> 93398 | G17: 1.581481481 | J17: General Electric | K17: =SUMIFS(Data!$F$2:$F$564,Data!$C$2:$C$564,">="&K$3,Data!$C$2:$C$564,"<="&K$4,Data!$D$2:$D$564,$J17) -> 36180 | L17: =SUMIFS(Data!$F$2:$F$564,Data!$C$2:$C$564,">="&L$3,Data!$C$2:$C$564,"<="&L$4,Data!$D$2:$D$564,$J17) -> 52344 | M17: 0.4467661692 | N17: =SUMIFS(Data!$F$2:$F$564,Data!$C$2:$C$564,">="&N$3,Data!$C$2:$C$564,"<="&N$4,Data!$D$2:$D$564,$J17) -> 36180 | O17: =SUMIFS(Data!$F$2:$F$564,Data!$C$2:$C$564,">="&O$3,Data!$C$2:$C$564,"<="&O$4,Data!$D$2:$D$564,$J17) -> 93398 | P17: 1.581481481
A18: General Motors | B18: =GETPIVOTDATA("Sum of Revenue",Sheet6!$A$3,"Date",RptMo,"Customer",$A18,"Years",B$5) -> 26613 | C18: =GETPIVOTDATA("Sum of Revenue",Sheet6!$A$3,"Date",RptMo,"Customer",$A18,"Years",C$5) -> 41101 | D18: 0.5443955961 | E18: =GETPIVOTDATA("Sum of YTDRev",Sheet6!$A$3,"Customer",$A18,"Years",E$5) -> 98867 | F18: =GETPIVOTDATA("Sum of YTDRev",Sheet6!$A$3,"Customer",$A18,"Years",F$5) -> 53773 | G18: -0.4561077002 | J18: General Motors | K18: =SUMIFS(Data!$F$2:$F$564,Data!$C$2:$C$564,">="&K$3,Data!$C$2:$C$564,"<="&K$4,Data!$D$2:$D$564,$J18) -> 26613 | L18: =SUMIFS(Data!$F$2:$F$564,Data!$C$2:$C$564,">="&L$3,Data!$C$2:$C$564,"<="&L$4,Data!$D$2:$D$564,$J18) -> 41101 | M18: 0.5443955961 | N18: =SUMIFS(Data!$F$2:$F$564,Data!$C$2:$C$564,">="&N$3,Data!$C$2:$C$564,"<="&N$4,Data!$D$2:$D$564,$J18) -> 98867 | O18: =SUMIFS(Data!$F$2:$F$564,Data!$C$2:$C$564,">="&O$3,Data!$C$2:$C$564,"<="&O$4,Data!$D$2:$D$564,$J18) -> 53773 | P18: -0.4561077002
A19: Home Depot | B19: =GETPIVOTDATA("Sum of Revenue",Sheet6!$A$3,"Date",RptMo,"Customer",$A19,"Years",B$5) -> 0 | C19: =GETPIVOTDATA("Sum of Revenue",Sheet6!$A$3,"Date",RptMo,"Customer",$A19,"Years",C$5) -> 0 | D19: 0 | E19: =GETPIVOTDATA("Sum of YTDRev",Sheet6!$A$3,"Customer",$A19,"Years",E$5) -> 0 | F19: =GETPIVOTDATA("Sum of YTDRev",Sheet6!$A$3,"Customer",$A19,"Years",F$5) -> 0 | G19: 0 | J19: Home Depot | K19: =SUMIFS(Data!$F$2:$F$564,Data!$C$2:$C$564,">="&K$3,Data!$C$2:$C$564,"<="&K$4,Data!$D$2:$D$564,$J19) -> 0 | L19: =SUMIFS(Data!$F$2:$F$564,Data!$C$2:$C$564,">="&L$3,Data!$C$2:$C$564,"<="&L$4,Data!$D$2:$D$564,$J19) -> 0 | M19: 0 | N19: =SUMIFS(Data!$F$2:$F$564,Data!$C$2:$C$564,">="&N$3,Data!$C$2:$C$564,"<="&N$4,Data!$D$2:$D$564,$J19) -> 0 | O19: =SUMIFS(Data!$F$2:$F$564,Data!$C$2:$C$564,">="&O$3,Data!$C$2:$C$564,"<="&O$4,Data!$D$2:$D$564,$J19) -> 0 | P19: 0
A20: HP | B20: =GETPIVOTDATA("Sum of Revenue",Sheet6!$A$3,"Date",RptMo,"Customer",$A20,"Years",B$5) -> 0 | C20: =GETPIVOTDATA("Sum of Revenue",Sheet6!$A$3,"Date",RptMo,"Customer",$A20,"Years",C$5) -> 0 | D20: 0 | E20: =GETPIVOTDATA("Sum of YTDRev",Sheet6!$A$3,"Customer",$A20,"Years",E$5) -> 0 | F20: =GETPIVOTDATA("Sum of YTDRev",Sheet6!$A$3,"Customer",$A20,"Years",F$5) -> 21015 | G20: 0 | J20: HP | K20: =SUMIFS(Data!$F$2:$F$564,Data!$C$2:$C$564,">="&K$3,Data!$C$2:$C$564,"<="&K$4,Data!$D$2:$D$564,$J20) -> 0 | L20: =SUMIFS(Data!$F$2:$F$564,Data!$C$2:$C$564,">="&L$3,Data!$C$2:$C$564,"<="&L$4,Data!$D$2:$D$564,$J20) -> 0 | M20: 0 | N20: =SUMIFS(Data!$F$2:$F$564,Data!$C$2:$C$564,">="&N$3,Data!$C$2:$C$564,"<="&N$4,Data!$D$2:$D$564,$J20) -> 0 | O20: =SUMIFS(Data!$F$2:$F$564,Data!$C$2:$C$564,">="&O$3,Data!$C$2:$C$564,"<="&O$4,Data!$D$2:$D$564,$J20) -> 21015 | P20: 0
A21: IBM | B21: =GETPIVOTDATA("Sum of Revenue",Sheet6!$A$3,"Date",RptMo,"Customer",$A21,"Years",B$5) -> 19890 | C21: =GETPIVOTDATA("Sum of Revenue",Sheet6!$A$3,"Date",RptMo,"Customer",$A21,"Years",C$5) -> 38315 | D21: 0.9263448969 | E21: =GETPIVOTDATA("Sum of YTDRev",Sheet6!$A$3,"Customer",$A21,"Years",E$5) -> 46891 | F21: =GETPIVOTDATA("Sum of YTDRev",Sheet6!$A$3,"Customer",$A21,"Years",F$5) -> 45175 | G21: -0.03659550873 | J21: IBM | K21: =SUMIFS(Data!$F$2:$F$564,Data!$C$2:$C$564,">="&K$3,Data!$C$2:$C$564,"<="&K$4,Data!$D$2:$D$564,$J21) -> 19890 | L21: =SUMIFS(Data!$F$2:$F$564,Data!$C$2:$C$564,">="&L$3,Data!$C$2:$C$564,"<="&L$4,Data!$D$2:$D$564,$J21) -> 38315 | M21: 0.9263448969 | N21: =SUMIFS(Data!$F$2:$F$564,Data!$C$2:$C$564,">="&N$3,Data!$C$2:$C$564,"<="&N$4,Data!$D$2:$D$564,$J21) -> 46891 | O21: =SUMIFS(Data!$F$2:$F$564,Data!$C$2:$C$564,">="&O$3,Data!$C$2:$C$564,"<="&O$4,Data!$D$2:$D$564,$J21) -> 45175 | P21: -0.03659550873
A22: Kroger | B22: =GETPIVOTDATA("Sum of Revenue",Sheet6!$A$3,"Date",RptMo,"Customer",$A22,"Years",B$5) -> 0 | C22: =GETPIVOTDATA("Sum of Revenue",Sheet6!$A$3,"Date",RptMo,"Customer",$A22,"Years",C$5) -> 0 | D22: 0 | E22: =GETPIVOTDATA("Sum of YTDRev",Sheet6!$A$3,"Customer",$A22,"Years",E$5) -> 0 | F22: =GETPIVOTDATA("Sum of YTDRev",Sheet6!$A$3,"Customer",$A22,"Years",F$5) -> 0 | G22: 0 | J22: Kroger | K22: =SUMIFS(Data!$F$2:$F$564,Data!$C$2:$C$564,">="&K$3,Data!$C$2:$C$564,"<="&K$4,Data!$D$2:$D$564,$J22) -> 0 | L22: =SUMIFS(Data!$F$2:$F$564,Data!$C$2:$C$564,">="&L$3,Data!$C$2:$C$564,"<="&L$4,Data!$D$2:$D$564,$J22) -> 0 | M22: 0 | N22: =SUMIFS(Data!$F$2:$F$564,Data!$C$2:$C$564,">="&N$3,Data!$C$2:$C$564,"<="&N$4,Data!$D$2:$D$564,$J22) -> 0 | O22: =SUMIFS(Data!$F$2:$F$564,Data!$C$2:$C$564,">="&O$3,Data!$C$2:$C$564,"<="&O$4,Data!$D$2:$D$564,$J22) -> 0 | P22: 0
A23: Lucent | B23: =GETPIVOTDATA("Sum of Revenue",Sheet6!$A$3,"Date",RptMo,"Customer",$A23,"Years",B$5) -> 0 | C23: =GETPIVOTDATA("Sum of Revenue",Sheet6!$A$3,"Date",RptMo,"Customer",$A23,"Years",C$5) -> 0 | D23: 0 | E23: =GETPIVOTDATA("Sum of YTDRev",Sheet6!$A$3,"Customer",$A23,"Years",E$5) -> 0 | F23: =GETPIVOTDATA("Sum of YTDRev",Sheet6!$A$3,"Customer",$A23,"Years",F$5) -> 0 | G23: 0 | J23: Lucent | K23: =SUMIFS(Data!$F$2:$F$564,Data!$C$2:$C$564,">="&K$3,Data!$C$2:$C$564,"<="&K$4,Data!$D$2:$D$564,$J23) -> 0 | L23: =SUMIFS(Data!$F$2:$F$564,Data!$C$2:$C$564,">="&L$3,Data!$C$2:$C$564,"<="&L$4,Data!$D$2:$D$564,$J23) -> 0 | M23: 0 | N23: =SUMIFS(Data!$F$2:$F$564,Data!$C$2:$C$564,">="&N$3,Data!$C$2:$C$564,"<="&N$4,Data!$D$2:$D$564,$J23) -> 0 | O23: =SUMIFS(Data!$F$2:$F$564,Data!$C$2:$C$564,">="&O$3,Data!$C$2:$C$564,"<="&O$4,Data!$D$2:$D$564,$J23) -> 0 | P23: 0
A24: Merck | B24: =GETPIVOTDATA("Sum of Revenue",Sheet6!$A$3,"Date",RptMo,"Customer",$A24,"Years",B$5) -> 0 | C24: =GETPIVOTDATA("Sum of Revenue",Sheet6!$A$3,"Date",RptMo,"Customer",$A24,"Years",C$5) -> 0 | D24: 0 | E24: =GETPIVOTDATA("Sum of YTDRev",Sheet6!$A$3,"Customer",$A24,"Years",E$5) -> 22104 | F24: =GETPIVOTDATA("Sum of YTDRev",Sheet6!$A$3,"Customer",$A24,"Years",F$5) -> 0 | G24: -1 | J24: Merck | K24: =SUMIFS(Data!$F$2:$F$564,Data!$C$2:$C$564,">="&K$3,Data!$C$2:$C$564,"<="&K$4,Data!$D$2:$D$564,$J24) -> 0 | L24: =SUMIFS(Data!$F$2:$F$564,Data!$C$2:$C$564,">="&L$3,Data!$C$2:$C$564,"<="&L$4,Data!$D$2:$D$564,$J24) -> 0 | M24: 0 | N24: =SUMIFS(Data!$F$2:$F$564,Data!$C$2:$C$564,">="&N$3,Data!$C$2:$C$564,"<="&N$4,Data!$D$2:$D$564,$J24) -> 22104 | O24: =SUMIFS(Data!$F$2:$F$564,Data!$C$2:$C$564,">="&O$3,Data!$C$2:$C$564,"<="&O$4,Data!$D$2:$D$564,$J24) -> 0 | P24: -1
A25: Motorola | B25: =GETPIVOTDATA("Sum of Revenue",Sheet6!$A$3,"Date",RptMo,"Customer",$A25,"Years",B$5) -> 0 | C25: =GETPIVOTDATA("Sum of Revenue",Sheet6!$A$3,"Date",RptMo,"Customer",$A25,"Years",C$5) -> 0 | D25: 0 | E25: =GETPIVOTDATA("Sum of YTDRev",Sheet6!$A$3,"Customer",$A25,"Years",E$5) -> 0 | F25: =GETPIVOTDATA("Sum of YTDRev",Sheet6!$A$3,"Customer",$A25,"Years",F$5) -> 0 | G25: 0 | J25: Motorola | K25: =SUMIFS(Data!$F$2:$F$564,Data!$C$2:$C$564,">="&K$3,Data!$C$2:$C$564,"<="&K$4,Data!$D$2:$D$564,$J25) -> 0 | L25: =SUMIFS(Data!$F$2:$F$564,Data!$C$2:$C$564,">="&L$3,Data!$C$2:$C$564,"<="&L$4,Data!$D$2:$D$564,$J25) -> 0 | M25: 0 | N25: =SUMIFS(Data!$F$2:$F$564,Data!$C$2:$C$564,">="&N$3,Data!$C$2:$C$564,"<="&N$4,Data!$D$2:$D$564,$J25) -> 0 | O25: =SUMIFS(Data!$F$2:$F$564,Data!$C$2:$C$564,">="&O$3,Data!$C$2:$C$564,"<="&O$4,Data!$D$2:$D$564,$J25) -> 0 | P25: 0
A26: P&G | B26: =GETPIVOTDATA("Sum of Revenue",Sheet6!$A$3,"Date",RptMo,"Customer",$A26,"Years",B$5) -> 0 | C26: =GETPIVOTDATA("Sum of Revenue",Sheet6!$A$3,"Date",RptMo,"Customer",$A26,"Years",C$5) -> 0 | D26: 0 | E26: =GETPIVOTDATA("Sum of YTDRev",Sheet6!$A$3,"Customer",$A26,"Years",E$5) -> 0 | F26: =GETPIVOTDATA("Sum of YTDRev",Sheet6!$A$3,"Customer",$A26,"Years",F$5) -> 0 | G26: 0 | J26: P&G | K26: =SUMIFS(Data!$F$2:$F$564,Data!$C$2:$C$564,">="&K$3,Data!$C$2:$C$564,"<="&K$4,Data!$D$2:$D$564,$J26) -> 0 | L26: =SUMIFS(Data!$F$2:$F$564,Data!$C$2:$C$564,">="&L$3,Data!$C$2:$C$564,"<="&L$4,Data!$D$2:$D$564,$J26) -> 0 | M26: 0 | N26: =SUMIFS(Data!$F$2:$F$564,Data!$C$2:$C$564,">="&N$3,Data!$C$2:$C$564,"<="&N$4,Data!$D$2:$D$564,$J26) -> 0 | O26: =SUMIFS(Data!$F$2:$F$564,Data!$C$2:$C$564,">="&O$3,Data!$C$2:$C$564,"<="&O$4,Data!$D$2:$D$564,$J26) -> 0 | P26: 0
A27: Phillip Morris | B27: =GETPIVOTDATA("Sum of Revenue",Sheet6!$A$3,"Date",RptMo,"Customer",$A27,"Years",B$5) -> 0 | C27: =GETPIVOTDATA("Sum of Revenue",Sheet6!$A$3,"Date",RptMo,"Customer",$A27,"Years",C$5) -> 4614 | D27: 0 | E27: =GETPIVOTDATA("Sum of YTDRev",Sheet6!$A$3,"Customer",$A27,"Years",E$5) -> 0 | F27: =GETPIVOTDATA("Sum of YTDRev",Sheet6!$A$3,"Customer",$A27,"Years",F$5) -> 4614 | G27: 0 | J27: Phillip Morris | K27: =SUMIFS(Data!$F$2:$F$564,Data!$C$2:$C$564,">="&K$3,Data!$C$2:$C$564,"<="&K$4,Data!$D$2:$D$564,$J27) -> 0 | L27: =SUMIFS(Data!$F$2:$F$564,Data!$C$2:$C$564,">="&L$3,Data!$C$2:$C$564,"<="&L$4,Data!$D$2:$D$564,$J27) -> 4614 | M27: 0 | N27: =SUMIFS(Data!$F$2:$F$564,Data!$C$2:$C$564,">="&N$3,Data!$C$2:$C$564,"<="&N$4,Data!$D$2:$D$564,$J27) -> 0 | O27: =SUMIFS(Data!$F$2:$F$564,Data!$C$2:$C$564,">="&O$3,Data!$C$2:$C$564,"<="&O$4,Data!$D$2:$D$564,$J27) -> 4614 | P27: 0
A28: SBC Communications | B28: =GETPIVOTDATA("Sum of Revenue",Sheet6!$A$3,"Date",RptMo,"Customer",$A28,"Years",B$5) -> 0 | C28: =GETPIVOTDATA("Sum of Revenue",Sheet6!$A$3,"Date",RptMo,"Customer",$A28,"Years",C$5) -> 0 | D28: 0 | E28: =GETPIVOTDATA("Sum of YTDRev",Sheet6!$A$3,"Customer",$A28,"Years",E$5) -> 14440 | F28: =GETPIVOTDATA("Sum of YTDRev",Sheet6!$A$3,"Customer",$A28,"Years",F$5) -> 0 | G28: -1 | J28: SBC Communications | K28: =SUMIFS(Data!$F$2:$F$564,Data!$C$2:$C$564,">="&K$3,Data!$C$2:$C$564,"<="&K$4,Data!$D$2:$D$564,$J28) -> 0 | L28: =SUMIFS(Data!$F$2:$F$564,Data!$C$2:$C$564,">="&L$3,Data!$C$2:$C$564,"<="&L$4,Data!$D$2:$D$564,$J28) -> 0 | M28: 0 | N28: =SUMIFS(Data!$F$2:$F$564,Data!$C$2:$C$564,">="&N$3,Data!$C$2:$C$564,"<="&N$4,Data!$D$2:$D$564,$J28) -> 14440 | O28: =SUMIFS(Data!$F$2:$F$564,Data!$C$2:$C$564,">="&O$3,Data!$C$2:$C$564,"<="&O$4,Data!$D$2:$D$564,$J28) -> 0 | P28: -1
A29: Sears | B29: =GETPIVOTDATA("Sum of Revenue",Sheet6!$A$3,"Date",RptMo,"Customer",$A29,"Years",B$5) -> 0 | C29: =GETPIVOTDATA("Sum of Revenue",Sheet6!$A$3,"Date",RptMo,"Customer",$A29,"Years",C$5) -> 0 | D29: 0 | E29: =GETPIVOTDATA("Sum of YTDRev",Sheet6!$A$3,"Customer",$A29,"Years",E$5) -> 0 | F29: =GETPIVOTDATA("Sum of YTDRev",Sheet6!$A$3,"Customer",$A29,"Years",F$5) -> 0 | G29: 0 | J29: Sears | K29: =SUMIFS(Data!$F$2:$F$564,Data!$C$2:$C$564,">="&K$3,Data!$C$2:$C$564,"<="&K$4,Data!$D$2:$D$564,$J29) -> 0 | L29: =SUMIFS(Data!$F$2:$F$564,Data!$C$2:$C$564,">="&L$3,Data!$C$2:$C$564,"<="&L$4,Data!$D$2:$D$564,$J29) -> 0 | M29: 0 | N29: =SUMIFS(Data!$F$2:$F$564,Data!$C$2:$C$564,">="&N$3,Data!$C$2:$C$564,"<="&N$4,Data!$D$2:$D$564,$J29) -> 0 | O29: =SUMIFS(Data!$F$2:$F$564,Data!$C$2:$C$564,">="&O$3,Data!$C$2:$C$564,"<="&O$4,Data!$D$2:$D$564,$J29) -> 0 | P29: 0
A30: State Farm | B30: =GETPIVOTDATA("Sum of Revenue",Sheet6!$A$3,"Date",RptMo,"Customer",$A30,"Years",B$5) -> 0 | C30: =GETPIVOTDATA("Sum of Revenue",Sheet6!$A$3,"Date",RptMo,"Customer",$A30,"Years",C$5) -> 0 | D30: 0 | E30: =GETPIVOTDATA("Sum of YTDRev",Sheet6!$A$3,"Customer",$A30,"Years",E$5) -> 21730 | F30: =GETPIVOTDATA("Sum of YTDRev",Sheet6!$A$3,"Customer",$A30,"Years",F$5) -> 0 | G30: -1 | J30: State Farm | K30: =SUMIFS(Data!$F$2:$F$564,Data!$C$2:$C$564,">="&K$3,Data!$C$2:$C$564,"<="&K$4,Data!$D$2:$D$564,$J30) -> 0 | L30: =SUMIFS(Data!$F$2:$F$564,Data!$C$2:$C$564,">="&L$3,Data!$C$2:$C$564,"<="&L$4,Data!$D$2:$D$564,$J30) -> 0 | M30: 0 | N30: =SUMIFS(Data!$F$2:$F$564,Data!$C$2:$C$564,">="&N$3,Data!$C$2:$C$564,"<="&N$4,Data!$D$2:$D$564,$J30) -> 21730 | O30: =SUMIFS(Data!$F$2:$F$564,Data!$C$2:$C$564,">="&O$3,Data!$C$2:$C$564,"<="&O$4,Data!$D$2:$D$564,$J30) -> 0 | P30: -1
A31: Texaco | B31: =GETPIVOTDATA("Sum of Revenue",Sheet6!$A$3,"Date",RptMo,"Customer",$A31,"Years",B$5) -> 0 | C31: =GETPIVOTDATA("Sum of Revenue",Sheet6!$A$3,"Date",RptMo,"Customer",$A31,"Years",C$5) -> 0 | D31: 0 | E31: =GETPIVOTDATA("Sum of YTDRev",Sheet6!$A$3,"Customer",$A31,"Years",E$5) -> 16288 | F31: =GETPIVOTDATA("Sum of YTDRev",Sheet6!$A$3,"Customer",$A31,"Years",F$5) -> 13806 | G31: -0.1523821218 | J31: Texaco | K31: =SUMIFS(Data!$F$2:$F$564,Data!$C$2:$C$564,">="&K$3,Data!$C$2:$C$564,"<="&K$4,Data!$D$2:$D$564,$J31) -> 0 | L31: =SUMIFS(Data!$F$2:$F$564,Data!$C$2:$C$564,">="&L$3,Data!$C$2:$C$564,"<="&L$4,Data!$D$2:$D$564,$J31) -> 0 | M31: 0 | N31: =SUMIFS(Data!$F$2:$F$564,Data!$C$2:$C$564,">="&N$3,Data!$C$2:$C$564,"<="&N$4,Data!$D$2:$D$564,$J31) -> 16288 | O31: =SUMIFS(Data!$F$2:$F$564,Data!$C$2:$C$564,">="&O$3,Data!$C$2:$C$564,"<="&O$4,Data!$D$2:$D$564,$J31) -> 13806 | P31: -0.1523821218
A32: Verizon | B32: =GETPIVOTDATA("Sum of Revenue",Sheet6!$A$3,"Date",RptMo,"Customer",$A32,"Years",B$5) -> 0 | C32: =GETPIVOTDATA("Sum of Revenue",Sheet6!$A$3,"Date",RptMo,"Customer",$A32,"Years",C$5) -> 38457 | D32: 0 | E32: =GETPIVOTDATA("Sum of YTDRev",Sheet6!$A$3,"Customer",$A32,"Years",E$5) -> 30804 | F32: =GETPIVOTDATA("Sum of YTDRev",Sheet6!$A$3,"Customer",$A32,"Years",F$5) -> 38457 | G32: 0.2484417608 | J32: Verizon | K32: =SUMIFS(Data!$F$2:$F$564,Data!$C$2:$C$564,">="&K$3,Data!$C$2:$C$564,"<="&K$4,Data!$D$2:$D$564,$J32) -> 0 | L32: =SUMIFS(Data!$F$2:$F$564,Data!$C$2:$C$564,">="&L$3,Data!$C$2:$C$564,"<="&L$4,Data!$D$2:$D$564,$J32) -> 38457 | M32: 0 | N32: =SUMIFS(Data!$F$2:$F$564,Data!$C$2:$C$564,">="&N$3,Data!$C$2:$C$564,"<="&N$4,Data!$D$2:$D$564,$J32) -> 30804 | O32: =SUMIFS(Data!$F$2:$F$564,Data!$C$2:$C$564,">="&O$3,Data!$C$2:$C$564,"<="&O$4,Data!$D$2:$D$564,$J32) -> 38457 | P32: 0.2484417608
A33: Wal-Mart | B33: =GETPIVOTDATA("Sum of Revenue",Sheet6!$A$3,"Date",RptMo,"Customer",$A33,"Years",B$5) -> 110263 | C33: =GETPIVOTDATA("Sum of Revenue",Sheet6!$A$3,"Date",RptMo,"Customer",$A33,"Years",C$5) -> 9246 | D33: -0.916145942 | E33: =GETPIVOTDATA("Sum of YTDRev",Sheet6!$A$3,"Customer",$A33,"Years",E$5) -> 143947 | F33: =GETPIVOTDATA("Sum of YTDRev",Sheet6!$A$3,"Customer",$A33,"Years",F$5) -> 70675 | G33: -0.5090206812 | J33: Wal-Mart | K33: =SUMIFS(Data!$F$2:$F$564,Data!$C$2:$C$564,">="&K$3,Data!$C$2:$C$564,"<="&K$4,Data!$D$2:$D$564,$J33) -> 110263 | L33: =SUMIFS(Data!$F$2:$F$564,Data!$C$2:$C$564,">="&L$3,Data!$C$2:$C$564,"<="&L$4,Data!$D$2:$D$564,$J33) -> 9246 | M33: -0.916145942 | N33: =SUMIFS(Data!$F$2:$F$564,Data!$C$2:$C$564,">="&N$3,Data!$C$2:$C$564,"<="&N$4,Data!$D$2:$D$564,$J33) -> 143947 | O33: =SUMIFS(Data!$F$2:$F$564,Data!$C$2:$C$564,">="&O$3,Data!$C$2:$C$564,"<="&O$4,Data!$D$2:$D$564,$J33) -> 70675 | P33: -0.5090206812
A34: Grand Total | B34: =SUM(B7:B33) -> 303845 | C34: 257045 | E34: =SUM(E7:E33) -> 599759 | F34: 501292 | J34: Grand Total | K34: =SUM(K7:K33) -> 303845 | L34: 257045 | N34: =SUM(N7:N33) -> 599759 | O34: 501292

Sheet Sheet6
B3: Years | C3: Date | D3: Values
B4: 2012 | Z4: 2012 Sum of Revenue | AA4: 2012 Sum of YTDRev | AB4: 2013 | AZ4: 2013 Sum of Revenue | BA4: 2013 Sum of YTDRev | BB4: Total Sum of Revenue | BC4: Total Sum of YTDRev
B5: Jan | D5: Feb | F5: Mar | H5: Apr | J5: May | L5: Jun | N5: Jul | P5: Aug | R5: Sep | T5: Oct | V5: Nov | X5: Dec | AB5: Jan | AD5: Feb | AF5: Mar | AH5: Apr | AJ5: May | AL5: Jun | AN5: Jul | AP5: Aug | AR5: Sep | AT5: Oct | AV5: Nov | AX5: Dec
A6: Customer | B6: Sum of Revenue | C6: Sum of YTDRev | D6: Sum of Revenue | E6: Sum of YTDRev | F6: Sum of Revenue | G6: Sum of YTDRev | H6: Sum of Revenue | I6: Sum of YTDRev | J6: Sum of Revenue | K6: Sum of YTDRev | L6: Sum of Revenue | M6: Sum of YTDRev | N6: Sum of Revenue | O6: Sum of YTDRev | P6: Sum of Revenue | Q6: Sum of YTDRev | R6: Sum of Revenue | S6: Sum of YTDRev | T6: Sum of Revenue | U6: Sum of YTDRev | V6: Sum of Revenue | W6: Sum of YTDRev | X6: Sum of Revenue | Y6: Sum of YTDRev | AB6: Sum of Revenue | AC6: Sum of YTDRev | AD6: Sum of Revenue | AE6: Sum of YTDRev | AF6: Sum of Revenue | AG6: Sum of YTDRev | AH6: Sum of Revenue | AI6: Sum of YTDRev | AJ6: Sum of Revenue | AK6: Sum of YTDRev | AL6: Sum of Revenue | AM6: Sum of YTDRev | AN6: Sum of Revenue | AO6: Sum of YTDRev | AP6: Sum of Revenue | AQ6: Sum of YTDRev | AR6: Sum of Revenue | AS6: Sum of YTDRev | AT6: Sum of Revenue | AU6: Sum of YTDRev | AV6: Sum of Revenue | AW6: Sum of YTDRev | AX6: Sum of Revenue | AY6: Sum of YTDRev
A7: AIG | P7: 18072 | Q7: 0 | Z7: 18072 | AA7: 0 | AH7: 14004 | AI7: 0 | AL7: 4060 | AM7: 0 | AV7: 15104 | AW7: 0 | AZ7: 33168 | BA7: 0 | BB7: 51240 | BC7: 0
A8: AT&T | B8: 2401 | C8: 2401 | F8: 47940 | G8: 0 | H8: 4124 | I8: 0 | J8: 51517 | K8: 0 | L8: 19062 | M8: 0 | N8: 11660 | O8: 0 | P8: 47372 | Q8: 0 | R8: 33951 | S8: 0 | T8: 21834 | U8: 0 | V8: 36801 | W8: 0 | X8: 9460 | Y8: 0 | Z8: 286122 | AA8: 2401 | AB8: 11784 | AC8: 11784 | AH8: 51638 | AI8: 0 | AJ8: 18898 | AK8: 0 | AL8: 40500 | AM8: 0 | AN8: 15488 | AO8: 0 | AP8: 6522 | AQ8: 0 | AR8: 14485 | AS8: 0 | AT8: 21042 | AU8: 0 | AV8: 14154 | AW8: 0 | AX8: 18304 | AY8: 0 | AZ8: 212815 | BA8: 11784 | BB8: 498937 | BC8: 14185
A9: Bank of America | H9: 33974 | I9: 0 | J9: 21075 | K9: 0 | L9: 15856 | M9: 0 | N9: 25350 | O9: 0 | P9: 62260 | Q9: 0 | T9: 14133 | U9: 0 | V9: 21033 | W9: 0 | X9: 11274 | Y9: 0 | Z9: 204955 | AA9: 0 | AD9: 7152 | AE9: 7152 | AF9: 24224 | AG9: 0 | AJ9: 40390 | AK9: 0 | AP9: 29783 | AQ9: 0 | AR9: 23295 | AS9: 0 | AT9: 42546 | AU9: 0 | AX9: 33981 | AY9: 0 | AZ9: 201371 | BA9: 7152 | BB9: 406326 | BC9: 7152
A10: Boeing | D10: 16936 | E10: 16936 | J10: 9635 | K10: 0 | N10: 24130 | O10: 0 | Z10: 50701 | AA10: 16936 | AH10: 20950 | AI10: 0 | AZ10: 20950 | BA10: 0 | BB10: 71651 | BC10: 16936
A11: Chevron | D11: 20610 | E11: 20610 | F11: 8116 | G11: 0 | T11: 7032 | U11: 0 | Z11: 35758 | AA11: 20610 | AN11: 18290 | AO11: 0 | AZ11: 18290 | BA11: 0 | BB11: 54048 | BC11: 20610
A12: CitiGroup | B12: 32398 | C12: 32398 | D12: 15684 | E12: 15684 | F12: 43213 | G12: 0 | H12: 8016 | I12: 0 | N12: 21800 | O12: 0 | P12: 39357 | Q12: 0 | R12: 51826 | S12: 0 | T12: 62921 | U12: 0 | V12: 28954 | W12: 0 | Z12: 304169 | AA12: 48082 | AB12: 36755 | AC12: 36755 | AD12: 12798 | AE12: 12798 | AF12: 15856 | AG12: 0 | AH12: 9575 | AI12: 0 | AJ12: 53843 | AK12: 0 | AL12: 18072 | AM12: 0 | AP12: 16144 | AQ12: 0 | AR12: 9002 | AS12: 0 | AT12: 38985 | AU12: 0 | AV12: 62712 | AW12: 0 | AX12: 35603 | AY12: 0 | AZ12: 309345 | BA12: 49553 | BB12: 613514 | BC12: 97635
A13: Compaq | V13: 17250 | W13: 0 | Z13: 17250 | AA13: 0 | AL13: 9064 | AM13: 0 | AP13: 4380 | AQ13: 0 | AV13: 8556 | AW13: 0 | AZ13: 22000 | BA13: 0 | BB13: 39250 | BC13: 0
A14: Duke Energy | H14: 18264 | I14: 0 | R14: 16784 | S14: 0 | T14: 16936 | U14: 0 | Z14: 51984 | AA14: 0 | AP14: 5532 | AQ14: 0 | AZ14: 5532 | BA14: 0 | BB14: 57516 | BC14: 0
A15: Exxon | D15: 22554 | E15: 22554 | F15: 25375 | G15: 0 | H15: 17534 | I15: 0 | J15: 41116 | K15: 0 | L15: 17847 | M15: 0 | N15: 30872 | O15: 0 | P15: 40457 | Q15: 0 | R15: 18156 | S15: 0 | T15: 65738 | U15: 0 | X15: 78440 | Y15: 0 | Z15: 358089 | AA15: 22554 | AB15: 38872 | AC15: 38872 | AD15: 13314 | AE15: 13314 | AF15: 9505 | AG15: 0 | AH15: 2178 | AI15: 0 | AJ15: 17537 | AK15: 0 | AL15: 31633 | AM15: 0 | AN15: 64074 | AO15: 0 | AP15: 33392 | AQ15: 0 | AR15: 40821 | AS15: 0 | AT15: 30070 | AU15: 0 | AV15: 41828 | AW15: 0 | AX15: 23046 | AY15: 0 | AZ15: 346270 | BA15: 52186 | BB15: 704359 | BC15: 74740
A16: Ford | B16: 22810 | C16: 22810 | D16: 35115 | E16: 35115 | F16: 23090 | G16: 0 | H16: 31319 | I16: 0 | L16: 6077 | M16: 0 | N16: 15876 | O16: 0 | P16: 20182 | Q16: 0 | R16: 9821 | S16: 0 | X16: 31264 | Y16: 0 | Z16: 195554 | AA16: 57925 | AD16: 39704 | AE16: 39704 | AF16: 31987 | AG16: 0 | AH16: 69862 | AI16: 0 | AJ16: 46913 | AK16: 0 | AL16: 16219 | AM16: 0 | AN16: 47099 | AO16: 0 | AP16: 58038 | AQ16: 0 | AR16: 13566 | AS16: 0 | AT16: 21010 | AU16: 0 | AV16: 41414 | AW16: 0 | AX16: 41428 | AY16: 0 | AZ16: 427240 | BA16: 39704 | BB16: 622794 | BC16: 97629
A17: General Electric | D17: 36180 | E17: 36180 | F17: 27932 | G17: 0 | H17: 23547 | I17: 0 | J17: 39506 | K17: 0 | L17: 34798 | M17: 0 | N17: 34539 | O17: 0 | P17: 11064 | Q17: 0 | R17: 22578 | S17: 0 | T17: 20120 | U17: 0 | V17: 44065 | W17: 0 | X17: 45668 | Y17: 0 | Z17: 339997 | AA17: 36180 | AB17: 41054 | AC17: 41054 | AD17: 52344 | AE17: 52344 | AF17: 4472 | AG17: 0 | AH17: 14845 | AI17: 0 | AJ17: 15479 | AK17: 0 | AL17: 29274 | AM17: 0 | AP17: 15544 | AQ17: 0 | AR17: 33427 | AS17: 0 | AT17: 17719 | AU17: 0 | AX17: 4696 | AY17: 0 | AZ17: 228854 | BA17: 93398 | BB17: 568851 | BC17: 129578
A18: General Motors | B18: 72254 | C18: 72254 | D18: 26613 | E18: 26613 | F18: 25448 | G18: 0 | H18: 22530 | I18: 0 | J18: 45149 | K18: 0 | N18: 36093 | O18: 0 | P18: 19584 | Q18: 0 | R18: 45503 | S18: 0 | T18: 18351 | U18: 0 | V18: 15204 | W18: 0 | X18: 10290 | Y18: 0 | Z18: 337019 | AA18: 98867 | AB18: 12672 | AC18: 12672 | AD18: 41101 | AE18: 41101 | AF18: 51357 | AG18: 0 | AH18: 45974 | AI18: 0 | AJ18: 45207 | AK18: 0 | AN18: 28440 | AO18: 0 | AP18: 42486 | AQ18: 0 | AR18: 2106 | AS18: 0 | AT18: 6420 | AU18: 0 | AV18: 76426 | AW18: 0 | AX18: 60955 | AY18: 0 | AZ18: 413144 | BA18: 53773 | BB18: 750163 | BC18: 152640
A19: Home Depot | N19: 18120 | O19: 0 | T19: 11220 | U19: 0 | Z19: 29340 | AA19: 0 | AR19: 2029 | AS19: 0 | AZ19: 2029 | BA19: 0 | BB19: 31369 | BC19: 0
A20: HP | J20: 4846 | K20: 0 | N20: 17840 | O20: 0 | Z20: 22686 | AA20: 0 | AB20: 21015 | AC20: 21015 | AR20: 11550 | AS20: 0 | AZ20: 32565 | BA20: 21015 | BB20: 55251 | BC20: 21015
A21: IBM | B21: 27001 | C21: 27001 | D21: 19890 | E21: 19890 | F21: 1819 | G21: 0 | H21: 19539 | I21: 0 | J21: 51714 | K21: 0 | L21: 26751 | M21: 0 | N21: 17512 | O21: 0 | P21: 12030 | Q21: 0 | R21: 1957 | S21: 0 | T21: 28750 | U21: 0 | V21: 3942 | W21: 0 | X21: 21889 | Y21: 0 | Z21: 232794 | AA21: 46891 | AB21: 6860 | AC21: 6860 | AD21: 38315 | AE21: 38315 | AF21: 30965 | AG21: 0 | AL21: 36540 | AM21: 0 | AN21: 37993 | AO21: 0 | AP21: 8466 | AQ21: 0 | AR21: 15174 | AS21: 0 | AT21: 11530 | AU21: 0 | AX21: 8712 | AY21: 0 | AZ21: 194555 | BA21: 45175 | BB21: 427349 | BC21: 92066
A22: Kroger | H22: 19520 | I22: 0 | P22: 1819 | Q22: 0 | V22: 2538 | W22: 0 | Z22: 23877 | AA22: 0 | AN22: 22840 | AO22: 0 | AZ22: 22840 | BA22: 0 | BB22: 46717 | BC22: 0
A23: Lucent | L23: 7167 | M23: 0 | N23: 23890 | O23: 0 | Z23: 31057 | AA23: 0 | AN23: 14497 | AO23: 0 | AT23: 17190 | AU23: 0 | AZ23: 31687 | BA23: 0 | BB23: 62744 | BC23: 0
A24: Merck | B24: 22104 | C24: 22104 | Z24: 22104 | AA24: 22104 | AF24: 2484 | AG24: 0 | AH24: 17728 | AI24: 0 | AZ24: 20212 | BA24: 0 | BB24: 42316 | BC24: 22104
A25: Motorola | H25: 4948 | I25: 0 | P25: 17856 | Q25: 0 | T25: 2358 | U25: 0 | Z25: 25162 | AA25: 0 | AF25: 5859 | AG25: 0 | AZ25: 5859 | BA25: 0 | BB25: 31021 | BC25: 0
A26: P&G | F26: 32882 | G26: 0 | J26: 17757 | K26: 0 | X26: 9660 | Y26: 0 | Z26: 60299 | AA26: 0 | BB26: 60299 | BC26: 0
A27: Phillip Morris | V27: 19344 | W27: 0 | X27: 10760 | Y27: 0 | Z27: 30104 | AA27: 0 | AD27: 4614 | AE27: 4614 | AT27: 15312 | AU27: 0 | AZ27: 19926 | BA27: 4614 | BB27: 50030 | BC27: 4614
A28: SBC Communications | B28: 14440 | C28: 14440 | L28: 22140 | M28: 0 | V28: 24420 | W28: 0 | Z28: 61000 | AA28: 14440 | AX28: 11680 | AY28: 0 | AZ28: 11680 | BA28: 0 | BB28: 72680 | BC28: 14440
A29: Sears | L29: 4282 | M29: 0 | N29: 8876 | O29: 0 | Z29: 13158 | AA29: 0 | AT29: 21552 | AU29: 0 | AZ29: 21552 | BA29: 0 | BB29: 34710 | BC29: 0
A30: State Farm | B30: 21730 | C30: 21730 | L30: 4754 | M30: 0 | Z30: 26484 | AA30: 21730 | AJ30: 13853 | AK30: 0 | AX30: 19544 | AY30: 0 | AZ30: 33397 | BA30: 0 | BB30: 59881 | BC30: 21730
A31: Texaco | B31: 16288 | C31: 16288 | Z31: 16288 | AA31: 16288 | AB31: 13806 | AC31: 13806 | AP31: 4270 | AQ31: 0 | AZ31: 18076 | BA31: 13806 | BB31: 34364 | BC31: 30094
A32: Verizon | B32: 30804 | C32: 30804 | H32: 24346 | I32: 0 | J32: 4012 | K32: 0 | L32: 30280 | M32: 0 | N32: 13866 | O32: 0 | P32: 6309 | Q32: 0 | R32: 15680 | S32: 0 | V32: 48566 | W32: 0 | X32: 30966 | Y32: 0 | Z32: 204829 | AA32: 30804 | AD32: 38457 | AE32: 38457 | AF32: 8732 | AG32: 0 | AH32: 4378 | AI32: 0 | AJ32: 14203 | AK32: 0 | AL32: 18042 | AM32: 0 | AN32: 12387 | AO32: 0 | AP32: 18981 | AQ32: 0 | AR32: 12936 | AS32: 0 | AT32: 34448 | AU32: 0 | AV32: 13290 | AW32: 0 | AX32: 10295 | AY32: 0 | AZ32: 186149 | BA32: 38457 | BB32: 390978 | BC32: 69261
A33: Wal-Mart | B33: 33684 | C33: 33684 | D33: 110263 | E33: 110263 | F33: 60507 | G33: 0 | H33: 27269 | I33: 0 | J33: 46941 | K33: 0 | L33: 26980 | M33: 0 | N33: 38104 | O33: 0 | P33: 2012 | Q33: 0 | R33: 36632 | S33: 0 | T33: 38755 | U33: 0 | X33: 18243 | Y33: 0 | Z33: 439390 | AA33: 143947 | AB33: 61429 | AC33: 61429 | AD33: 9246 | AE33: 9246 | AF33: 41060 | AG33: 0 | AH33: 40139 | AI33: 0 | AJ33: 37442 | AK33: 0 | AL33: 24576 | AM33: 0 | AN33: 41830 | AO33: 0 | AP33: 22645 | AQ33: 0 | AR33: 39903 | AS33: 0 | AT33: 24070 | AU33: 0 | AV33: 49914 | AW33: 0 | AX33: 37810 | AY33: 0 | AZ33: 430064 | BA33: 70675 | BB33: 869454 | BC33: 214622
A34: Grand Total | B34: 295914 | C34: 295914 | D34: 303845 | E34: 303845 | F34: 296322 | G34: 0 | H34: 254930 | I34: 0 | J34: 333268 | K34: 0 | L34: 215994 | M34: 0 | N34: 338528 | O34: 0 | P34: 298374 | Q34: 0 | R34: 252888 | S34: 0 | T34: 308148 | U34: 0 | V34: 262117 | W34: 0 | X34: 277914 | Y34: 0 | Z34: 3438242 | AA34: 599759 | AB34: 244247 | AC34: 244247 | AD34: 257045 | AE34: 257045 | AF34: 226501 | AG34: 0 | AH34: 291271 | AI34: 0 | AJ34: 303765 | AK34: 0 | AL34: 227980 | AM34: 0 | AN34: 302938 | AO34: 0 | AP34: 266183 | AQ34: 0 | AR34: 218294 | AS34: 0 | AT34: 301894 | AU34: 0 | AV34: 323398 | AW34: 0 | AX34: 306054 | AY34: 0 | AZ34: 3269570 | BA34: 501292 | BB34: 6707812 | BC34: 1101051

Sheet Data
A1: Region | B1: Product | C1: Date | D1: Customer | E1: Quantity | F1: Revenue | G1: COGS | H1: Profit | I1: YTDRev | K1: Customer
A2: East | B2: XYZ | C2: 2012-01-01 | D2: Ford | E2: 1000 | F2: 22810 | G2: 10220 | H2: 12590 | I2: =IF(MONTH(C2)<=RptMo,F2,0) -> 22810 | K2: Ford
A3: East | B3: DEF | C3: 2012-01-01 | D3: Merck | E3: 800 | F3: 18552 | G3: 7872 | H3: 10680 | I3: =IF(MONTH(C3)<=RptMo,F3,0) -> 18552 | K3: Merck
A4: East | B4: XYZ | C4: 2012-01-01 | D4: Texaco | E4: 400 | F4: 9152 | G4: 4088 | H4: 5064 | I4: =IF(MONTH(C4)<=RptMo,F4,0) -> 9152 | K4: Texaco
A5: Central | B5: DEF | C5: 2012-01-01 | D5: Verizon | E5: 100 | F5: 2257 | G5: 984 | H5: 1273 | I5: =IF(MONTH(C5)<=RptMo,F5,0) -> 2257 | K5: Verizon
A6: East | B6: ABC | C6: 2012-01-04 | D6: General Motors | E6: 400 | F6: 8456 | G6: 3388 | H6: 5068 | I6: =IF(MONTH(C6)<=RptMo,F6,0) -> 8456 | K6: General Motors
A7: East | B7: DEF | C7: 2012-01-04 | D7: State Farm | E7: 1000 | F7: 21730 | G7: 9840 | H7: 11890 | I7: =IF(MONTH(C7)<=RptMo,F7,0) -> 21730 | K7: State Farm
A8: Central | B8: ABC | C8: 2012-01-06 | D8: General Motors | E8: 800 | F8: 16416 | G8: 6776 | H8: 9640 | I8: =IF(MONTH(C8)<=RptMo,F8,0) -> 16416 | K8: Wal-Mart
A9: Central | B9: XYZ | C9: 2012-01-07 | D9: Wal-Mart | E9: 900 | F9: 21438 | G9: 9198 | H9: 12240 | I9: =IF(MONTH(C9)<=RptMo,F9,0) -> 21438 | K9: IBM
A10: Central | B10: ABC | C10: 2012-01-09 | D10: IBM | E10: 300 | F10: 6267 | G10: 2541 | H10: 3726 | I10: =IF(MONTH(C10)<=RptMo,F10,0) -> 6267 | K10: AT&T
A11: East | B11: XYZ | C11: 2012-01-11 | D11: AT&T | E11: 100 | F11: 2401 | G11: 1022 | H11: 1379 | I11: =IF(MONTH(C11)<=RptMo,F11,0) -> 2401 | K11: CitiGroup
A12: East | B12: ABC | C12: 2012-01-12 | D12: Verizon | E12: 500 | F12: 9345 | G12: 4235 | H12: 5110 | I12: =IF(MONTH(C12)<=RptMo,F12,0) -> 9345 | K12: SBC Communications
A13: East | B13: ABC | C13: 2012-01-13 | D13: CitiGroup | E13: 600 | F13: 11628 | G13: 5082 | H13: 6546 | I13: =IF(MONTH(C13)<=RptMo,F13,0) -> 11628 | K13: General Electric
A14: West | B14: DEF | C14: 2012-01-16 | D14: Verizon | E14: 100 | F14: 2042 | G14: 984 | H14: 1058 | I14: =IF(MONTH(C14)<=RptMo,F14,0) -> 2042 | K14: Boeing
A15: West | B15: ABC | C15: 2012-01-18 | D15: Merck | E15: 200 | F15: 3552 | G15: 1694 | H15: 1858 | I15: =IF(MONTH(C15)<=RptMo,F15,0) -> 3552 | K15: Exxon
A16: East | B16: ABC | C16: 2012-01-18 | D16: SBC Communications | E16: 800 | F16: 14440 | G16: 6776 | H16: 7664 | I16: =IF(MONTH(C16)<=RptMo,F16,0) -> 14440 | K16: Chevron
A17: West | B17: ABC | C17: 2012-01-20 | D17: General Motors | E17: 800 | F17: 14592 | G17: 6776 | H17: 7816 | I17: =IF(MONTH(C17)<=RptMo,F17,0) -> 14592 | K17: P&G
A18: East | B18: ABC | C18: 2012-01-21 | D18: IBM | E18: 600 | F18: 12606 | G18: 5082 | H18: 7524 | I18: =IF(MONTH(C18)<=RptMo,F18,0) -> 12606 | K18: Bank of America
A19: Central | B19: ABC | C19: 2012-01-22 | D19: CitiGroup | E19: 1000 | F19: 20770 | G19: 8470 | H19: 12300 | I19: =IF(MONTH(C19)<=RptMo,F19,0) -> 20770 | K19: Motorola
A20: East | B20: ABC | C20: 2012-01-23 | D20: IBM | E20: 400 | F20: 8128 | G20: 3388 | H20: 4740 | I20: =IF(MONTH(C20)<=RptMo,F20,0) -> 8128 | K20: Duke Energy
A21: East | B21: DEF | C21: 2012-01-26 | D21: General Motors | E21: 700 | F21: 17150 | G21: 6888 | H21: 10262 | I21: =IF(MONTH(C21)<=RptMo,F21,0) -> 17150 | K21: Kroger
A22: East | B22: ABC | C22: 2012-01-26 | D22: Texaco | E22: 400 | F22: 7136 | G22: 3388 | H22: 3748 | I22: =IF(MONTH(C22)<=RptMo,F22,0) -> 7136 | K22: HP
A23: East | B23: DEF | C23: 2012-01-27 | D23: Wal-Mart | E23: 300 | F23: 6714 | G23: 2952 | H23: 3762 | I23: =IF(MONTH(C23)<=RptMo,F23,0) -> 6714 | K23: Sears
A24: East | B24: ABC | C24: 2012-01-28 | D24: General Motors | E24: 800 | F24: 15640 | G24: 6776 | H24: 8864 | I24: =IF(MONTH(C24)<=RptMo,F24,0) -> 15640 | K24: Lucent
A25: West | B25: ABC | C25: 2012-01-29 | D25: Wal-Mart | E25: 300 | F25: 5532 | G25: 2541 | H25: 2991 | I25: =IF(MONTH(C25)<=RptMo,F25,0) -> 5532 | K25: Home Depot
A26: West | B26: DEF | C26: 2012-01-31 | D26: Verizon | E26: 800 | F26: 17160 | G26: 7872 | H26: 9288 | I26: =IF(MONTH(C26)<=RptMo,F26,0) -> 17160 | K26: AIG
A27: East | B27: DEF | C27: 2012-02-03 | D27: General Electric | E27: 900 | F27: 21708 | G27: 8856 | H27: 12852 | I27: =IF(MONTH(C27)<=RptMo,F27,0) -> 21708 | K27: Compaq
A28: West | B28: ABC | C28: 2012-02-04 | D28: IBM | E28: 1000 | F28: 19890 | G28: 8470 | H28: 11420 | I28: =IF(MONTH(C28)<=RptMo,F28,0) -> 19890 | K28: Phillip Morris
A29: Central | B29: ABC | C29: 2012-02-05 | D29: CitiGroup | E29: 100 | F29: 1817 | G29: 847 | H29: 970 | I29: =IF(MONTH(C29)<=RptMo,F29,0) -> 1817
A30: Central | B30: ABC | C30: 2012-02-06 | D30: General Motors | E30: 300 | F30: 5157 | G30: 2541 | H30: 2616 | I30: =IF(MONTH(C30)<=RptMo,F30,0) -> 5157
A31: East | B31: DEF | C31: 2012-02-11 | D31: CitiGroup | E31: 700 | F31: 13867 | G31: 6888 | H31: 6979 | I31: =IF(MONTH(C31)<=RptMo,F31,0) -> 13867
A32: East | B32: XYZ | C32: 2012-02-13 | D32: Boeing | E32: 800 | F32: 16936 | G32: 8176 | H32: 8760 | I32: =IF(MONTH(C32)<=RptMo,F32,0) -> 16936
A33: East | B33: ABC | C33: 2012-02-14 | D33: Exxon | E33: 600 | F33: 11430 | G33: 5082 | H33: 6348 | I33: =IF(MONTH(C33)<=RptMo,F33,0) -> 11430
A34: West | B34: ABC | C34: 2012-02-15 | D34: Wal-Mart | E34: 1000 | F34: 20250 | G34: 8470 | H34: 11780 | I34: =IF(MONTH(C34)<=RptMo,F34,0) -> 20250
A35: Central | B35: ABC | C35: 2012-02-16 | D35: Wal-Mart | E35: 500 | F35: 10385 | G35: 4235 | H35: 6150 | I35: =IF(MONTH(C35)<=RptMo,F35,0) -> 10385
A36: Central | B36: ABC | C36: 2012-02-17 | D36: Exxon | E36: 600 | F36: 11124 | G36: 5082 | H36: 6042 | I36: =IF(MONTH(C36)<=RptMo,F36,0) -> 11124
A37: West | B37: ABC | C37: 2012-02-17 | D37: Ford | E37: 300 | F37: 5700 | G37: 2541 | H37: 3159 | I37: =IF(MONTH(C37)<=RptMo,F37,0) -> 5700
A38: Central | B38: XYZ | C38: 2012-02-17 | D38: Wal-Mart | E38: 1000 | F38: 23810 | G38: 10220 | H38: 13590 | I38: =IF(MONTH(C38)<=RptMo,F38,0) -> 23810
A39: Central | B39: XYZ | C39: 2012-02-20 | D39: Wal-Mart | E39: 500 | F39: 11525 | G39: 5110 | H39: 6415 | I39: =IF(MONTH(C39)<=RptMo,F39,0) -> 11525
A40: Central | B40: DEF | C40: 2012-02-23 | D40: Chevron | E40: 900 | F40: 20610 | G40: 8856 | H40: 11754 | I40: =IF(MONTH(C40)<=RptMo,F40,0) -> 20610
A41: East | B41: DEF | C41: 2012-02-23 | D41: Ford | E41: 600 | F41: 13206 | G41: 5904 | H41: 7302 | I41: =IF(MONTH(C41)<=RptMo,F41,0) -> 13206
A42: Central | B42: XYZ | C42: 2012-02-23 | D42: Wal-Mart | E42: 1000 | F42: 25140 | G42: 10220 | H42: 14920 | I42: =IF(MONTH(C42)<=RptMo,F42,0) -> 25140
A43: Central | B43: ABC | C43: 2012-02-24 | D43: Ford | E43: 900 | F43: 16209 | G43: 7623 | H43: 8586 | I43: =IF(MONTH(C43)<=RptMo,F43,0) -> 16209
A44: East | B44: DEF | C44: 2012-02-24 | D44: Wal-Mart | E44: 400 | F44: 8708 | G44: 3936 | H44: 4772 | I44: =IF(MONTH(C44)<=RptMo,F44,0) -> 8708
A45: East | B45: XYZ | C45: 2012-02-25 | D45: General Motors | E45: 900 | F45: 21456 | G45: 9198 | H45: 12258 | I45: =IF(MONTH(C45)<=RptMo,F45,0) -> 21456
A46: West | B46: XYZ | C46: 2012-02-26 | D46: Wal-Mart | E46: 500 | F46: 10445 | G46: 5110 | H46: 5335 | I46: =IF(MONTH(C46)<=RptMo,F46,0) -> 10445
A47: West | B47: DEF | C47: 2012-02-29 | D47: General Electric | E47: 600 | F47: 14472 | G47: 5904 | H47: 8568 | I47: =IF(MONTH(C47)<=RptMo,F47,0) -> 14472
A48: Central | B48: XYZ | C48: 2012-03-01 | D48: Wal-Mart | E48: 200 | F48: 4262 | G48: 2044 | H48: 2218 | I48: =IF(MONTH(C48)<=RptMo,F48,0) -> 0
A49: West | B49: ABC | C49: 2012-03-02 | D49: P&G | E49: 700 | F49: 12474 | G49: 5929 | H49: 6545 | I49: =IF(MONTH(C49)<=RptMo,F49,0) -> 0
A50: West | B50: ABC | C50: 2012-03-03 | D50: Exxon | E50: 500 | F50: 10155 | G50: 4235 | H50: 5920 | I50: =IF(MONTH(C50)<=RptMo,F50,0) -> 0
A51: Central | B51: DEF | C51: 2012-03-06 | D51: Wal-Mart | E51: 900 | F51: 19503 | G51: 8856 | H51: 10647 | I51: =IF(MONTH(C51)<=RptMo,F51,0) -> 0
A52: East | B52: ABC | C52: 2012-03-09 | D52: IBM | E52: 100 | F52: 1819 | G52: 847 | H52: 972 | I52: =IF(MONTH(C52)<=RptMo,F52,0) -> 0
A53: Central | B53: XYZ | C53: 2012-03-10 | D53: CitiGroup | E53: 1000 | F53: 24430 | G53: 10220 | H53: 14210 | I53: =IF(MONTH(C53)<=RptMo,F53,0) -> 0
A54: East | B54: XYZ | C54: 2012-03-10 | D54: Wal-Mart | E54: 500 | F54: 10935 | G54: 5110 | H54: 5825 | I54: =IF(MONTH(C54)<=RptMo,F54,0) -> 0
A55: East | B55: ABC | C55: 2012-03-12 | D55: Chevron | E55: 400 | F55: 8116 | G55: 3388 | H55: 4728 | I55: =IF(MONTH(C55)<=RptMo,F55,0) -> 0
A56: Central | B56: XYZ | C56: 2012-03-13 | D56: CitiGroup | E56: 900 | F56: 18783 | G56: 9198 | H56: 9585 | I56: =IF(MONTH(C56)<=RptMo,F56,0) -> 0
A57: Central | B57: ABC | C57: 2012-03-15 | D57: Wal-Mart | E57: 800 | F57: 16696 | G57: 6776 | H57: 9920 | I57: =IF(MONTH(C57)<=RptMo,F57,0) -> 0
A58: East | B58: ABC | C58: 2012-03-16 | D58: General Electric | E58: 400 | F58: 7132 | G58: 3388 | H58: 3744 | I58: =IF(MONTH(C58)<=RptMo,F58,0) -> 0
A59: East | B59: XYZ | C59: 2012-03-17 | D59: General Electric | E59: 200 | F59: 4784 | G59: 2044 | H59: 2740 | I59: =IF(MONTH(C59)<=RptMo,F59,0) -> 0
A60: West | B60: XYZ | C60: 2012-03-18 | D60: AT&T | E60: 300 | F60: 6765 | G60: 3066 | H60: 3699 | I60: =IF(MONTH(C60)<=RptMo,F60,0) -> 0
A61: Central | B61: ABC | C61: 2012-03-19 | D61: Wal-Mart | E61: 300 | F61: 5355 | G61: 2541 | H61: 2814 | I61: =IF(MONTH(C61)<=RptMo,F61,0) -> 0
A62: Central | B62: ABC | C62: 2012-03-20 | D62: Wal-Mart | E62: 200 | F62: 3756 | G62: 1694 | H62: 2062 | I62: =IF(MONTH(C62)<=RptMo,F62,0) -> 0
A63: East | B63: DEF | C63: 2012-03-21 | D63: General Motors | E63: 1000 | F63: 20090 | G63: 9840 | H63: 10250 | I63: =IF(MONTH(C63)<=RptMo,F63,0) -> 0
A64: Central | B64: XYZ | C64: 2012-03-22 | D64: Ford | E64: 1000 | F64: 23090 | G64: 10220 | H64: 12870 | I64: =IF(MONTH(C64)<=RptMo,F64,0) -> 0
A65: Central | B65: DEF | C65: 2012-03-24 | D65: AT&T | E65: 900 | F65: 21357 | G65: 8856 | H65: 12501 | I65: =IF(MONTH(C65)<=RptMo,F65,0) -> 0
A66: Central | B66: ABC | C66: 2012-03-24 | D66: General Motors | E66: 300 | F66: 5358 | G66: 2541 | H66: 2817 | I66: =IF(MONTH(C66)<=RptMo,F66,0) -> 0
A67: West | B67: DEF | C67: 2012-03-26 | D67: General Electric | E67: 800 | F67: 16016 | G67: 7872 | H67: 8144 | I67: =IF(MONTH(C67)<=RptMo,F67,0) -> 0
A68: Central | B68: XYZ | C68: 2012-03-28 | D68: AT&T | E68: 600 | F68: 14448 | G68: 6132 | H68: 8316 | I68: =IF(MONTH(C68)<=RptMo,F68,0) -> 0
A69: East | B69: ABC | C69: 2012-03-29 | D69: AT&T | E69: 300 | F69: 5370 | G69: 2541 | H69: 2829 | I69: =IF(MONTH(C69)<=RptMo,F69,0) -> 0
A70: East | B70: DEF | C70: 2012-03-31 | D70: Exxon | E70: 400 | F70: 8632 | G70: 3936 | H70: 4696 | I70: =IF(MONTH(C70)<=RptMo,F70,0) -> 0
A71: East | B71: DEF | C71: 2012-03-31 | D71: Exxon | E71: 300 | F71: 6588 | G71: 2952 | H71: 3636 | I71: =IF(MONTH(C71)<=RptMo,F71,0) -> 0
A72: West | B72: XYZ | C72: 2012-03-31 | D72: P&G | E72: 800 | F72: 20408 | G72: 8176 | H72: 12232 | I72: =IF(MONTH(C72)<=RptMo,F72,0) -> 0
A73: West | B73: XYZ | C73: 2012-04-01 | D73: Verizon | E73: 100 | F73: 2466 | G73: 1022 | H73: 1444 | I73: =IF(MONTH(C73)<=RptMo,F73,0) -> 0
A74: East | B74: ABC | C74: 2012-04-03 | D74: Bank of America | E74: 700 | F74: 14686 | G74: 5929 | H74: 8757 | I74: =IF(MONTH(C74)<=RptMo,F74,0) -> 0
A75: Central | B75: ABC | C75: 2012-04-03 | D75: General Electric | E75: 300 | F75: 5886 | G75: 2541 | H75: 3345 | I75: =IF(MONTH(C75)<=RptMo,F75,0) -> 0
A76: East | B76: DEF | C76: 2012-04-06 | D76: Exxon | E76: 500 | F76: 12095 | G76: 4920 | H76: 7175 | I76: =IF(MONTH(C76)<=RptMo,F76,0) -> 0
A77: East | B77: XYZ | C77: 2012-04-07 | D77: IBM | E77: 900 | F77: 19539 | G77: 9198 | H77: 10341 | I77: =IF(MONTH(C77)<=RptMo,F77,0) -> 0
A78: West | B78: ABC | C78: 2012-04-08 | D78: General Electric | E78: 300 | F78: 6063 | G78: 2541 | H78: 3522 | I78: =IF(MONTH(C78)<=RptMo,F78,0) -> 0
A79: East | B79: ABC | C79: 2012-04-09 | D79: General Electric | E79: 600 | F79: 11598 | G79: 5082 | H79: 6516 | I79: =IF(MONTH(C79)<=RptMo,F79,0) -> 0
A80: Central | B80: ABC | C80: 2012-04-10 | D80: CitiGroup | E80: 400 | F80: 8016 | G80: 3388 | H80: 4628 | I80: =IF(MONTH(C80)<=RptMo,F80,0) -> 0
A81: Central | B81: XYZ | C81: 2012-04-16 | D81: Motorola | E81: 200 | F81: 4948 | G81: 2044 | H81: 2904 | I81: =IF(MONTH(C81)<=RptMo,F81,0) -> 0
A82: East | B82: XYZ | C82: 2012-04-16 | D82: Verizon | E82: 1000 | F82: 21880 | G82: 10220 | H82: 11660 | I82: =IF(MONTH(C82)<=RptMo,F82,0) -> 0
A83: Central | B83: XYZ | C83: 2012-04-18 | D83: Wal-Mart | E83: 700 | F83: 15834 | G83: 7154 | H83: 8680 | I83: =IF(MONTH(C83)<=RptMo,F83,0) -> 0
A84: East | B84: DEF | C84: 2012-04-19 | D84: Ford | E84: 100 | F84: 2457 | G84: 984 | H84: 1473 | I84: =IF(MONTH(C84)<=RptMo,F84,0) -> 0
A85: East | B85: ABC | C85: 2012-04-20 | D85: Exxon | E85: 300 | F85: 5439 | G85: 2541 | H85: 2898 | I85: =IF(MONTH(C85)<=RptMo,F85,0) -> 0
A86: East | B86: DEF | C86: 2012-04-21 | D86: Wal-Mart | E86: 500 | F86: 11435 | G86: 4920 | H86: 6515 | I86: =IF(MONTH(C86)<=RptMo,F86,0) -> 0
A87: Central | B87: XYZ | C87: 2012-04-23 | D87: General Motors | E87: 1000 | F87: 22530 | G87: 10220 | H87: 12310 | I87: =IF(MONTH(C87)<=RptMo,F87,0) -> 0
A88: East | B88: XYZ | C88: 2012-04-24 | D88: Ford | E88: 1000 | F88: 25060 | G88: 10220 | H88: 14840 | I88: =IF(MONTH(C88)<=RptMo,F88,0) -> 0
A89: East | B89: XYZ | C89: 2012-04-25 | D89: Duke Energy | E89: 800 | F89: 18264 | G89: 8176 | H89: 10088 | I89: =IF(MONTH(C89)<=RptMo,F89,0) -> 0
A90: East | B90: XYZ | C90: 2012-04-26 | D90: AT&T | E90: 200 | F90: 4124 | G90: 2044 | H90: 2080 | I90: =IF(MONTH(C90)<=RptMo,F90,0) -> 0
A91: Central | B91: ABC | C91: 2012-04-27 | D91: Ford | E91: 200 | F91: 3802 | G91: 1694 | H91: 2108 | I91: =IF(MONTH(C91)<=RptMo,F91,0) -> 0
A92: Central | B92: DEF | C92: 2012-04-27 | D92: Kroger | E92: 800 | F92: 19520 | G92: 7872 | H92: 11648 | I92: =IF(MONTH(C92)<=RptMo,F92,0) -> 0
A93: West | B93: XYZ | C93: 2012-04-29 | D93: Bank of America | E93: 800 | F93: 19288 | G93: 8176 | H93: 11112 | I93: =IF(MONTH(C93)<=RptMo,F93,0) -> 0
A94: East | B94: ABC | C94: 2012-05-01 | D94: AT&T | E94: 800 | F94: 15592 | G94: 6776 | H94: 8816 | I94: =IF(MONTH(C94)<=RptMo,F94,0) -> 0
A95: West | B95: XYZ | C95: 2012-05-01 | D95: Bank of America | E95: 300 | F95: 6867 | G95: 3066 | H95: 3801 | I95: =IF(MONTH(C95)<=RptMo,F95,0) -> 0
A96: East | B96: ABC | C96: 2012-05-03 | D96: AT&T | E96: 600 | F96: 12318 | G96: 5082 | H96: 7236 | I96: =IF(MONTH(C96)<=RptMo,F96,0) -> 0
A97: West | B97: DEF | C97: 2012-05-03 | D97: Bank of America | E97: 400 | F97: 8052 | G97: 3936 | H97: 4116 | I97: =IF(MONTH(C97)<=RptMo,F97,0) -> 0
A98: West | B98: DEF | C98: 2012-05-04 | D98: Wal-Mart | E98: 800 | F98: 17544 | G98: 7872 | H98: 9672 | I98: =IF(MONTH(C98)<=RptMo,F98,0) -> 0
A99: East | B99: DEF | C99: 2012-05-05 | D99: IBM | E99: 700 | F99: 16765 | G99: 6888 | H99: 9877 | I99: =IF(MONTH(C99)<=RptMo,F99,0) -> 0
A100: Central | B100: ABC | C100: 2012-05-07 | D100: Exxon | E100: 500 | F100: 8785 | G100: 4235 | H100: 4550 | I100: =IF(MONTH(C100)<=RptMo,F100,0) -> 0
A101: East | B101: DEF | C101: 2012-05-08 | D101: Wal-Mart | E101: 700 | F101: 16772 | G101: 6888 | H101: 9884 | I101: =IF(MONTH(C101)<=RptMo,F101,0) -> 0
A102: East | B102: ABC | C102: 2012-05-09 | D102: General Electric | E102: 500 | F102: 9380 | G102: 4235 | H102: 5145 | I102: =IF(MONTH(C102)<=RptMo,F102,0) -> 0
A103: Central | B103: XYZ | C103: 2012-05-09 | D103: Wal-Mart | E103: 500 | F103: 12625 | G103: 5110 | H103: 7515 | I103: =IF(MONTH(C103)<=RptMo,F103,0) -> 0
A104: East | B104: ABC | C104: 2012-05-10 | D104: Boeing | E104: 500 | F104: 9635 | G104: 4235 | H104: 5400 | I104: =IF(MONTH(C104)<=RptMo,F104,0) -> 0
A105: West | B105: DEF | C105: 2012-05-12 | D105: Bank of America | E105: 300 | F105: 6156 | G105: 2952 | H105: 3204 | I105: =IF(MONTH(C105)<=RptMo,F105,0) -> 0
A106: East | B106: DEF | C106: 2012-05-15 | D106: P&G | E106: 900 | F106: 17757 | G106: 8856 | H106: 8901 | I106: =IF(MONTH(C106)<=RptMo,F106,0) -> 0
A107: West | B107: XYZ | C107: 2012-05-16 | D107: HP | E107: 200 | F107: 4846 | G107: 2044 | H107: 2802 | I107: =IF(MONTH(C107)<=RptMo,F107,0) -> 0
A108: East | B108: ABC | C108: 2012-05-17 | D108: General Electric | E108: 600 | F108: 11208 | G108: 5082 | H108: 6126 | I108: =IF(MONTH(C108)<=RptMo,F108,0) -> 0
A109: Central | B109: DEF | C109: 2012-05-18 | D109: AT&T | E109: 500 | F109: 10195 | G109: 4920 | H109: 5275 | I109: =IF(MONTH(C109)<=RptMo,F109,0) -> 0
A110: West | B110: ABC | C110: 2012-05-19 | D110: General Motors | E110: 700 | F110: 12803 | G110: 5929 | H110: 6874 | I110: =IF(MONTH(C110)<=RptMo,F110,0) -> 0
A111: East | B111: ABC | C111: 2012-05-19 | D111: Verizon | E111: 200 | F111: 4012 | G111: 1694 | H111: 2318 | I111: =IF(MONTH(C111)<=RptMo,F111,0) -> 0
A112: East | B112: DEF | C112: 2012-05-20 | D112: Exxon | E112: 100 | F112: 2319 | G112: 984 | H112: 1335 | I112: =IF(MONTH(C112)<=RptMo,F112,0) -> 0
A113: Central | B113: ABC | C113: 2012-05-20 | D113: General Motors | E113: 600 | F113: 11700 | G113: 5082 | H113: 6618 | I113: =IF(MONTH(C113)<=RptMo,F113,0) -> 0
A114: East | B114: DEF | C114: 2012-05-22 | D114: Exxon | E114: 600 | F114: 12048 | G114: 5904 | H114: 6144 | I114: =IF(MONTH(C114)<=RptMo,F114,0) -> 0
A115: East | B115: XYZ | C115: 2012-05-24 | D115: IBM | E115: 700 | F115: 14469 | G115: 7154 | H115: 7315 | I115: =IF(MONTH(C115)<=RptMo,F115,0) -> 0
A116: West | B116: ABC | C116: 2012-05-25 | D116: Exxon | E116: 900 | F116: 17964 | G116: 7623 | H116: 10341 | I116: =IF(MONTH(C116)<=RptMo,F116,0) -> 0
A117: West | B117: ABC | C117: 2012-05-26 | D117: AT&T | E117: 700 | F117: 13412 | G117: 5929 | H117: 7483 | I117: =IF(MONTH(C117)<=RptMo,F117,0) -> 0
A118: Central | B118: XYZ | C118: 2012-05-26 | D118: General Motors | E118: 300 | F118: 6660 | G118: 3066 | H118: 3594 | I118: =IF(MONTH(C118)<=RptMo,F118,0) -> 0
A119: Central | B119: XYZ | C119: 2012-05-27 | D119: General Electric | E119: 900 | F119: 18918 | G119: 9198 | H119: 9720 | I119: =IF(MONTH(C119)<=RptMo,F119,0) -> 0
A120: Central | B120: ABC | C120: 2012-05-28 | D120: General Motors | E120: 700 | F120: 13986 | G120: 5929 | H120: 8057 | I120: =IF(MONTH(C120)<=RptMo,F120,0) -> 0
A121: Central | B121: DEF | C121: 2012-05-30 | D121: IBM | E121: 1000 | F121: 20480 | G121: 9840 | H121: 10640 | I121: =IF(MONTH(C121)<=RptMo,F121,0) -> 0
A122: Central | B122: XYZ | C122: 2012-06-02 | D122: Wal-Mart | E122: 200 | F122: 4264 | G122: 2044 | H122: 2220 | I122: =IF(MONTH(C122)<=RptMo,F122,0) -> 0
A123: East | B123: DEF | C123: 2012-06-03 | D123: Sears | E123: 200 | F123: 4282 | G123: 1968 | H123: 2314 | I123: =IF(MONTH(C123)<=RptMo,F123,0) -> 0
A124: Central | B124: XYZ | C124: 2012-06-04 | D124: IBM | E124: 500 | F124: 12135 | G124: 5110 | H124: 7025 | I124: =IF(MONTH(C124)<=RptMo,F124,0) -> 0
A125: Central | B125: DEF | C125: 2012-06-06 | D125: IBM | E125: 200 | F125: 4286 | G125: 1968 | H125: 2318 | I125: =IF(MONTH(C125)<=RptMo,F125,0) -> 0
A126: East | B126: XYZ | C126: 2012-06-08 | D126: Verizon | E126: 500 | F126: 10650 | G126: 5110 | H126: 5540 | I126: =IF(MONTH(C126)<=RptMo,F126,0) -> 0
A127: East | B127: ABC | C127: 2012-06-09 | D127: Verizon | E127: 1000 | F127: 19630 | G127: 8470 | H127: 11160 | I127: =IF(MONTH(C127)<=RptMo,F127,0) -> 0
A128: Central | B128: ABC | C128: 2012-06-10 | D128: General Electric | E128: 700 | F128: 12838 | G128: 5929 | H128: 6909 | I128: =IF(MONTH(C128)<=RptMo,F128,0) -> 0
A129: West | B129: ABC | C129: 2012-06-11 | D129: Ford | E129: 200 | F129: 3856 | G129: 1694 | H129: 2162 | I129: =IF(MONTH(C129)<=RptMo,F129,0) -> 0
A130: Central | B130: DEF | C130: 2012-06-15 | D130: SBC Communications | E130: 1000 | F130: 22140 | G130: 9840 | H130: 12300 | I130: =IF(MONTH(C130)<=RptMo,F130,0) -> 0
A131: Central | B131: ABC | C131: 2012-06-19 | D131: IBM | E131: 500 | F131: 10330 | G131: 4235 | H131: 6095 | I131: =IF(MONTH(C131)<=RptMo,F131,0) -> 0
A132: West | B132: ABC | C132: 2012-06-20 | D132: Exxon | E132: 100 | F132: 1882 | G132: 847 | H132: 1035 | I132: =IF(MONTH(C132)<=RptMo,F132,0) -> 0
A133: Central | B133: DEF | C133: 2012-06-21 | D133: Ford | E133: 100 | F133: 2221 | G133: 984 | H133: 1237 | I133: =IF(MONTH(C133)<=RptMo,F133,0) -> 0
A134: Central | B134: DEF | C134: 2012-06-22 | D134: Bank of America | E134: 800 | F134: 15856 | G134: 7872 | H134: 7984 | I134: =IF(MONTH(C134)<=RptMo,F134,0) -> 0
A135: Central | B135: ABC | C135: 2012-06-22 | D135: Exxon | E135: 700 | F135: 13734 | G135: 5929 | H135: 7805 | I135: =IF(MONTH(C135)<=RptMo,F135,0) -> 0
A136: Central | B136: DEF | C136: 2012-06-23 | D136: State Farm | E136: 200 | F136: 4754 | G136: 1968 | H136: 2786 | I136: =IF(MONTH(C136)<=RptMo,F136,0) -> 0
A137: Central | B137: DEF | C137: 2012-06-26 | D137: Exxon | E137: 100 | F137: 2231 | G137: 984 | H137: 1247 | I137: =IF(MONTH(C137)<=RptMo,F137,0) -> 0
A138: Central | B138: XYZ | C138: 2012-06-28 | D138: General Electric | E138: 900 | F138: 21960 | G138: 9198 | H138: 12762 | I138: =IF(MONTH(C138)<=RptMo,F138,0) -> 0
A139: Central | B139: XYZ | C139: 2012-06-29 | D139: Lucent | E139: 300 | F139: 7167 | G139: 3066 | H139: 4101 | I139: =IF(MONTH(C139)<=RptMo,F139,0) -> 0
A140: East | B140: XYZ | C140: 2012-06-29 | D140: Wal-Mart | E140: 900 | F140: 22716 | G140: 9198 | H140: 13518 | I140: =IF(MONTH(C140)<=RptMo,F140,0) -> 0
A141: East | B141: XYZ | C141: 2012-06-30 | D141: AT&T | E141: 900 | F141: 19062 | G141: 9198 | H141: 9864 | I141: =IF(MONTH(C141)<=RptMo,F141,0) -> 0
A142: West | B142: XYZ | C142: 2012-07-01 | D142: General Motors | E142: 300 | F142: 7593 | G142: 3066 | H142: 4527 | I142: =IF(MONTH(C142)<=RptMo,F142,0) -> 0
A143: East | B143: DEF | C143: 2012-07-04 | D143: Exxon | E143: 900 | F143: 21168 | G143: 8856 | H143: 12312 | I143: =IF(MONTH(C143)<=RptMo,F143,0) -> 0
A144: West | B144: XYZ | C144: 2012-07-06 | D144: Boeing | E144: 1000 | F144: 24130 | G144: 10220 | H144: 13910 | I144: =IF(MONTH(C144)<=RptMo,F144,0) -> 0
A145: Central | B145: XYZ | C145: 2012-07-07 | D145: Sears | E145: 400 | F145: 8876 | G145: 4088 | H145: 4788 | I145: =IF(MONTH(C145)<=RptMo,F145,0) -> 0
A146: East | B146: DEF | C146: 2012-07-10 | D146: General Electric | E146: 900 | F146: 21555 | G146: 8856 | H146: 12699 | I146: =IF(MONTH(C146)<=RptMo,F146,0) -> 0
A147: Central | B147: XYZ | C147: 2012-07-11 | D147: Ford | E147: 700 | F147: 15876 | G147: 7154 | H147: 8722 | I147: =IF(MONTH(C147)<=RptMo,F147,0) -> 0
A148: East | B148: ABC | C148: 2012-07-11 | D148: IBM | E148: 300 | F148: 5967 | G148: 2541 | H148: 3426 | I148: =IF(MONTH(C148)<=RptMo,F148,0) -> 0
A149: East | B149: XYZ | C149: 2012-07-13 | D149: Bank of America | E149: 1000 | F149: 25350 | G149: 10220 | H149: 15130 | I149: =IF(MONTH(C149)<=RptMo,F149,0) -> 0
A150: West | B150: ABC | C150: 2012-07-14 | D150: Home Depot | E150: 200 | F150: 4158 | G150: 1694 | H150: 2464 | I150: =IF(MONTH(C150)<=RptMo,F150,0) -> 0
A151: Central | B151: DEF | C151: 2012-07-14 | D151: IBM | E151: 500 | F151: 11545 | G151: 4920 | H151: 6625 | I151: =IF(MONTH(C151)<=RptMo,F151,0) -> 0
A152: West | B152: ABC | C152: 2012-07-16 | D152: General Motors | E152: 600 | F152: 12684 | G152: 5082 | H152: 7602 | I152: =IF(MONTH(C152)<=RptMo,F152,0) -> 0
A153: East | B153: ABC | C153: 2012-07-18 | D153: Wal-Mart | E153: 1000 | F153: 18660 | G153: 8470 | H153: 10190 | I153: =IF(MONTH(C153)<=RptMo,F153,0) -> 0
A154: Central | B154: DEF | C154: 2012-07-19 | D154: AT&T | E154: 500 | F154: 11660 | G154: 4920 | H154: 6740 | I154: =IF(MONTH(C154)<=RptMo,F154,0) -> 0
A155: East | B155: DEF | C155: 2012-07-22 | D155: General Motors | E155: 800 | F155: 15816 | G155: 7872 | H155: 7944 | I155: =IF(MONTH(C155)<=RptMo,F155,0) -> 0
A156: West | B156: XYZ | C156: 2012-07-23 | D156: Lucent | E156: 1000 | F156: 23890 | G156: 10220 | H156: 13670 | I156: =IF(MONTH(C156)<=RptMo,F156,0) -> 0
A157: West | B157: DEF | C157: 2012-07-24 | D157: Verizon | E157: 600 | F157: 13866 | G157: 5904 | H157: 7962 | I157: =IF(MONTH(C157)<=RptMo,F157,0) -> 0
A158: East | B158: ABC | C158: 2012-07-25 | D158: HP | E158: 1000 | F158: 17840 | G158: 8470 | H158: 9370 | I158: =IF(MONTH(C158)<=RptMo,F158,0) -> 0
A159: East | B159: ABC | C159: 2012-07-25 | D159: Wal-Mart | E159: 800 | F159: 13936 | G159: 6776 | H159: 7160 | I159: =IF(MONTH(C159)<=RptMo,F159,0) -> 0
A160: East | B160: XYZ | C160: 2012-07-26 | D160: General Electric | E160: 600 | F160: 12984 | G160: 6132 | H160: 6852 | I160: =IF(MONTH(C160)<=RptMo,F160,0) -> 0
A161: Central | B161: DEF | C161: 2012-07-27 | D161: CitiGroup | E161: 1000 | F161: 21800 | G161: 9840 | H161: 11960 | I161: =IF(MONTH(C161)<=RptMo,F161,0) -> 0
A162: Central | B162: ABC | C162: 2012-07-27 | D162: Wal-Mart | E162: 300 | F162: 5508 | G162: 2541 | H162: 2967 | I162: =IF(MONTH(C162)<=RptMo,F162,0) -> 0
A163: East | B163: XYZ | C163: 2012-07-30 | D163: Exxon | E163: 400 | F163: 9704 | G163: 4088 | H163: 5616 | I163: =IF(MONTH(C163)<=RptMo,F163,0) -> 0
A164: West | B164: XYZ | C164: 2012-07-31 | D164: Home Depot | E164: 600 | F164: 13962 | G164: 6132 | H164: 7830 | I164: =IF(MONTH(C164)<=RptMo,F164,0) -> 0
A165: Central | B165: ABC | C165: 2012-08-01 | D165: Exxon | E165: 700 | F165: 13433 | G165: 5929 | H165: 7504 | I165: =IF(MONTH(C165)<=RptMo,F165,0) -> 0
A166: Central | B166: ABC | C166: 2012-08-02 | D166: Bank of America | E166: 800 | F166: 15288 | G166: 6776 | H166: 8512 | I166: =IF(MONTH(C166)<=RptMo,F166,0) -> 0
A167: Central | B167: XYZ | C167: 2012-08-02 | D167: General Motors | E167: 900 | F167: 19584 | G167: 9198 | H167: 10386 | I167: =IF(MONTH(C167)<=RptMo,F167,0) -> 0
A168: Central | B168: XYZ | C168: 2012-08-03 | D168: General Electric | E168: 100 | F168: 2320 | G168: 1022 | H168: 1298 | I168: =IF(MONTH(C168)<=RptMo,F168,0) -> 0
A169: West | B169: DEF | C169: 2012-08-08 | D169: AT&T | E169: 800 | F169: 16936 | G169: 7872 | H169: 9064 | I169: =IF(MONTH(C169)<=RptMo,F169,0) -> 0
A170: East | B170: ABC | C170: 2012-08-10 | D170: Ford | E170: 300 | F170: 6138 | G170: 2541 | H170: 3597 | I170: =IF(MONTH(C170)<=RptMo,F170,0) -> 0
A171: West | B171: DEF | C171: 2012-08-10 | D171: IBM | E171: 600 | F171: 12030 | G171: 5904 | H171: 6126 | I171: =IF(MONTH(C171)<=RptMo,F171,0) -> 0
A172: West | B172: XYZ | C172: 2012-08-12 | D172: Bank of America | E172: 400 | F172: 9384 | G172: 4088 | H172: 5296 | I172: =IF(MONTH(C172)<=RptMo,F172,0) -> 0
A173: East | B173: ABC | C173: 2012-08-13 | D173: Exxon | E173: 300 | F173: 5904 | G173: 2541 | H173: 3363 | I173: =IF(MONTH(C173)<=RptMo,F173,0) -> 0
A174: Central | B174: ABC | C174: 2012-08-15 | D174: Exxon | E174: 1000 | F174: 21120 | G174: 8470 | H174: 12650 | I174: =IF(MONTH(C174)<=RptMo,F174,0) -> 0
A175: East | B175: XYZ | C175: 2012-08-16 | D175: Bank of America | E175: 900 | F175: 18684 | G175: 9198 | H175: 9486 | I175: =IF(MONTH(C175)<=RptMo,F175,0) -> 0
A176: East | B176: ABC | C176: 2012-08-16 | D176: Ford | E176: 100 | F176: 1836 | G176: 847 | H176: 989 | I176: =IF(MONTH(C176)<=RptMo,F176,0) -> 0
A177: East | B177: XYZ | C177: 2012-08-18 | D177: AT&T | E177: 600 | F177: 15006 | G177: 6132 | H177: 8874 | I177: =IF(MONTH(C177)<=RptMo,F177,0) -> 0
A178: West | B178: DEF | C178: 2012-08-18 | D178: CitiGroup | E178: 900 | F178: 19989 | G178: 8856 | H178: 11133 | I178: =IF(MONTH(C178)<=RptMo,F178,0) -> 0
A179: East | B179: ABC | C179: 2012-08-21 | D179: Ford | E179: 100 | F179: 1913 | G179: 847 | H179: 1066 | I179: =IF(MONTH(C179)<=RptMo,F179,0) -> 0
A180: West | B180: XYZ | C180: 2012-08-21 | D180: General Electric | E180: 400 | F180: 8744 | G180: 4088 | H180: 4656 | I180: =IF(MONTH(C180)<=RptMo,F180,0) -> 0
A181: West | B181: XYZ | C181: 2012-08-21 | D181: Motorola | E181: 800 | F181: 17856 | G181: 8176 | H181: 9680 | I181: =IF(MONTH(C181)<=RptMo,F181,0) -> 0
A182: East | B182: XYZ | C182: 2012-08-22 | D182: CitiGroup | E182: 900 | F182: 19368 | G182: 9198 | H182: 10170 | I182: =IF(MONTH(C182)<=RptMo,F182,0) -> 0
A183: East | B183: ABC | C183: 2012-08-23 | D183: Kroger | E183: 100 | F183: 1819 | G183: 847 | H183: 972 | I183: =IF(MONTH(C183)<=RptMo,F183,0) -> 0
A184: East | B184: XYZ | C184: 2012-08-24 | D184: AT&T | E184: 500 | F184: 10990 | G184: 5110 | H184: 5880 | I184: =IF(MONTH(C184)<=RptMo,F184,0) -> 0
A185: Central | B185: XYZ | C185: 2012-08-24 | D185: AT&T | E185: 200 | F185: 4440 | G185: 2044 | H185: 2396 | I185: =IF(MONTH(C185)<=RptMo,F185,0) -> 0
A186: Central | B186: ABC | C186: 2012-08-25 | D186: Verizon | E186: 300 | F186: 6309 | G186: 2541 | H186: 3768 | I186: =IF(MONTH(C186)<=RptMo,F186,0) -> 0
A187: West | B187: DEF | C187: 2012-08-26 | D187: Bank of America | E187: 800 | F187: 18904 | G187: 7872 | H187: 11032 | I187: =IF(MONTH(C187)<=RptMo,F187,0) -> 0
A188: West | B188: XYZ | C188: 2012-08-28 | D188: AIG | E188: 800 | F188: 18072 | G188: 8176 | H188: 9896 | I188: =IF(MONTH(C188)<=RptMo,F188,0) -> 0
A189: Central | B189: ABC | C189: 2012-08-28 | D189: Wal-Mart | E189: 100 | F189: 2012 | G189: 847 | H189: 1165 | I189: =IF(MONTH(C189)<=RptMo,F189,0) -> 0
A190: West | B190: ABC | C190: 2012-08-31 | D190: Ford | E190: 500 | F190: 10295 | G190: 4235 | H190: 6060 | I190: =IF(MONTH(C190)<=RptMo,F190,0) -> 0
A191: Central | B191: ABC | C191: 2012-09-01 | D191: Ford | E191: 400 | F191: 7944 | G191: 3388 | H191: 4556 | I191: =IF(MONTH(C191)<=RptMo,F191,0) -> 0
A192: West | B192: ABC | C192: 2012-09-02 | D192: IBM | E192: 100 | F192: 1957 | G192: 847 | H192: 1110 | I192: =IF(MONTH(C192)<=RptMo,F192,0) -> 0
A193: East | B193: DEF | C193: 2012-09-06 | D193: AT&T | E193: 600 | F193: 12756 | G193: 5904 | H193: 6852 | I193: =IF(MONTH(C193)<=RptMo,F193,0) -> 0
A194: Central | B194: DEF | C194: 2012-09-06 | D194: Verizon | E194: 700 | F194: 15680 | G194: 6888 | H194: 8792 | I194: =IF(MONTH(C194)<=RptMo,F194,0) -> 0
A195: Central | B195: ABC | C195: 2012-09-07 | D195: Exxon | E195: 300 | F195: 5826 | G195: 2541 | H195: 3285 | I195: =IF(MONTH(C195)<=RptMo,F195,0) -> 0
A196: East | B196: XYZ | C196: 2012-09-09 | D196: CitiGroup | E196: 800 | F196: 20008 | G196: 8176 | H196: 11832 | I196: =IF(MONTH(C196)<=RptMo,F196,0) -> 0
A197: East | B197: ABC | C197: 2012-09-10 | D197: CitiGroup | E197: 300 | F197: 5457 | G197: 2541 | H197: 2916 | I197: =IF(MONTH(C197)<=RptMo,F197,0) -> 0
A198: East | B198: ABC | C198: 2012-09-11 | D198: Exxon | E198: 600 | F198: 12330 | G198: 5082 | H198: 7248 | I198: =IF(MONTH(C198)<=RptMo,F198,0) -> 0
A199: East | B199: DEF | C199: 2012-09-14 | D199: AT&T | E199: 500 | F199: 11845 | G199: 4920 | H199: 6925 | I199: =IF(MONTH(C199)<=RptMo,F199,0) -> 0
A200: Central | B200: DEF | C200: 2012-09-15 | D200: Duke Energy | E200: 800 | F200: 16784 | G200: 7872 | H200: 8912 | I200: =IF(MONTH(C200)<=RptMo,F200,0) -> 0
... 364 more rows

Sheet Sheet5
C3: Column Labels
C4: 2012 | D4: 2013 | E4: 2012 | F4: 2013
C5: 2 | D5: 2
B6: Row Labels | C6: Sum of Revenue | D6: Sum of Revenue | E6: Sum of YTD Rev | F6: Sum of YTD Rev
B7: AIG | E7: 0 | F7: 0
B8: AT&T | E8: 2401 | F8: 11784
B9: Bank of America | D9: 7152 | E9: 0 | F9: 7152
B10: Boeing | C10: 16936 | E10: 16936 | F10: 0
B11: Chevron | C11: 20610 | E11: 20610 | F11: 0
B12: CitiGroup | C12: 15684 | D12: 12798 | E12: 48082 | F12: 49553
B13: Compaq | E13: 0 | F13: 0
B14: Duke Energy | E14: 0 | F14: 0
B15: Exxon | C15: 22554 | D15: 13314 | E15: 22554 | F15: 52186
B16: Ford | C16: 35115 | D16: 39704 | E16: 57925 | F16: 39704
B17: General Electric | C17: 36180 | D17: 52344 | E17: 36180 | F17: 93398
B18: General Motors | C18: 26613 | D18: 41101 | E18: 98867 | F18: 53773
B19: Home Depot | E19: 0 | F19: 0
B20: HP | E20: 0 | F20: 21015
B21: IBM | C21: 19890 | D21: 38315 | E21: 46891 | F21: 45175
B22: Kroger | E22: 0 | F22: 0
B23: Lucent | E23: 0 | F23: 0
B24: Merck | E24: 22104 | F24: 0
B25: Motorola | E25: 0 | F25: 0
B26: P&G | E26: 0
B27: Phillip Morris | D27: 4614 | E27: 0 | F27: 4614
B28: SBC Communications | E28: 14440 | F28: 0
B29: Sears | E29: 0 | F29: 0
B30: State Farm | E30: 21730 | F30: 0
B31: Texaco | E31: 16288 | F31: 13806
B32: Verizon | D32: 38457 | E32: 30804 | F32: 38457
B33: Wal-Mart | C33: 110263 | D33: 9246 | E33: 143947 | F33: 70675
B34: Grand Total | C34: 303845 | D34: 257045 | E34: 599759 | F34: 501292

Sheet PP
A1: Region | B1: Product | C1: Date | D1: Customer | E1: Quantity | F1: Revenue | G1: COGS | H1: Profit | I1: YTD Rev | J1: Year | K1: Month
A2: East | B2: XYZ | C2: 2012-01-01 | D2: Ford | E2: 1000 | F2: 22810 | G2: 10220 | H2: 12590 | I2: =IF(MONTH(C2)<3,F2,0) -> 22810 | J2: =YEAR(C2) -> 2012 | K2: =MONTH(C2) -> 1
A3: East | B3: DEF | C3: 2012-01-01 | D3: Merck | E3: 800 | F3: 18552 | G3: 7872 | H3: 10680 | I3: =IF(MONTH(C3)<3,F3,0) -> 18552 | J3: =YEAR(C3) -> 2012 | K3: =MONTH(C3) -> 1
A4: East | B4: XYZ | C4: 2012-01-01 | D4: Texaco | E4: 400 | F4: 9152 | G4: 4088 | H4: 5064 | I4: 9152 | J4: 2012 | K4: 1
A5: Central | B5: DEF | C5: 2012-01-01 | D5: Verizon | E5: 100 | F5: 2257 | G5: 984 | H5: 1273 | I5: 2257 | J5: 2012 | K5: 1
A6: East | B6: ABC | C6: 2012-01-04 | D6: General Motors | E6: 400 | F6: 8456 | G6: 3388 | H6: 5068 | I6: 8456 | J6: 2012 | K6: 1
A7: East | B7: DEF | C7: 2012-01-04 | D7: State Farm | E7: 1000 | F7: 21730 | G7: 9840 | H7: 11890 | I7: 21730 | J7: 2012 | K7: 1
A8: Central | B8: ABC | C8: 2012-01-06 | D8: General Motors | E8: 800 | F8: 16416 | G8: 6776 | H8: 9640 | I8: 16416 | J8: 2012 | K8: 1
A9: Central | B9: XYZ | C9: 2012-01-07 | D9: Wal-Mart | E9: 900 | F9: 21438 | G9: 9198 | H9: 12240 | I9: 21438 | J9: 2012 | K9: 1
A10: Central | B10: ABC | C10: 2012-01-09 | D10: IBM | E10: 300 | F10: 6267 | G10: 2541 | H10: 3726 | I10: 6267 | J10: 2012 | K10: 1
A11: East | B11: XYZ | C11: 2012-01-11 | D11: AT&T | E11: 100 | F11: 2401 | G11: 1022 | H11: 1379 | I11: 2401 | J11: 2012 | K11: 1
A12: East | B12: ABC | C12: 2012-01-12 | D12: Verizon | E12: 500 | F12: 9345 | G12: 4235 | H12: 5110 | I12: 9345 | J12: 2012 | K12: 1
A13: East | B13: ABC | C13: 2012-01-13 | D13: CitiGroup | E13: 600 | F13: 11628 | G13: 5082 | H13: 6546 | I13: 11628 | J13: 2012 | K13: 1
A14: West | B14: DEF | C14: 2012-01-16 | D14: Verizon | E14: 100 | F14: 2042 | G14: 984 | H14: 1058 | I14: 2042 | J14: 2012 | K14: 1
A15: West | B15: ABC | C15: 2012-01-18 | D15: Merck | E15: 200 | F15: 3552 | G15: 1694 | H15: 1858 | I15: 3552 | J15: 2012 | K15: 1
A16: East | B16: ABC | C16: 2012-01-18 | D16: SBC Communications | E16: 800 | F16: 14440 | G16: 6776 | H16: 7664 | I16: 14440 | J16: 2012 | K16: 1
A17: West | B17: ABC | C17: 2012-01-20 | D17: General Motors | E17: 800 | F17: 14592 | G17: 6776 | H17: 7816 | I17: 14592 | J17: 2012 | K17: 1
A18: East | B18: ABC | C18: 2012-01-21 | D18: IBM | E18: 600 | F18: 12606 | G18: 5082 | H18: 7524 | I18: 12606 | J18: 2012 | K18: 1
A19: Central | B19: ABC | C19: 2012-01-22 | D19: CitiGroup | E19: 1000 | F19: 20770 | G19: 8470 | H19: 12300 | I19: 20770 | J19: 2012 | K19: 1
A20: East | B20: ABC | C20: 2012-01-23 | D20: IBM | E20: 400 | F20: 8128 | G20: 3388 | H20: 4740 | I20: 8128 | J20: 2012 | K20: 1
A21: East | B21: DEF | C21: 2012-01-26 | D21: General Motors | E21: 700 | F21: 17150 | G21: 6888 | H21: 10262 | I21: 17150 | J21: 2012 | K21: 1
A22: East | B22: ABC | C22: 2012-01-26 | D22: Texaco | E22: 400 | F22: 7136 | G22: 3388 | H22: 3748 | I22: 7136 | J22: 2012 | K22: 1
A23: East | B23: DEF | C23: 2012-01-27 | D23: Wal-Mart | E23: 300 | F23: 6714 | G23: 2952 | H23: 3762 | I23: 6714 | J23: 2012 | K23: 1
A24: East | B24: ABC | C24: 2012-01-28 | D24: General Motors | E24: 800 | F24: 15640 | G24: 6776 | H24: 8864 | I24: 15640 | J24: 2012 | K24: 1
A25: West | B25: ABC | C25: 2012-01-29 | D25: Wal-Mart | E25: 300 | F25: 5532 | G25: 2541 | H25: 2991 | I25: 5532 | J25: 2012 | K25: 1
A26: West | B26: DEF | C26: 2012-01-31 | D26: Verizon | E26: 800 | F26: 17160 | G26: 7872 | H26: 9288 | I26: 17160 | J26: 2012 | K26: 1
A27: East | B27: DEF | C27: 2012-02-03 | D27: General Electric | E27: 900 | F27: 21708 | G27: 8856 | H27: 12852 | I27: 21708 | J27: 2012 | K27: 2
A28: West | B28: ABC | C28: 2012-02-04 | D28: IBM | E28: 1000 | F28: 19890 | G28: 8470 | H28: 11420 | I28: 19890 | J28: 2012 | K28: 2
A29: Central | B29: ABC | C29: 2012-02-05 | D29: CitiGroup | E29: 100 | F29: 1817 | G29: 847 | H29: 970 | I29: 1817 | J29: 2012 | K29: 2
A30: Central | B30: ABC | C30: 2012-02-06 | D30: General Motors | E30: 300 | F30: 5157 | G30: 2541 | H30: 2616 | I30: 5157 | J30: 2012 | K30: 2
A31: East | B31: DEF | C31: 2012-02-11 | D31: CitiGroup | E31: 700 | F31: 13867 | G31: 6888 | H31: 6979 | I31: 13867 | J31: 2012 | K31: 2
A32: East | B32: XYZ | C32: 2012-02-13 | D32: Boeing | E32: 800 | F32: 16936 | G32: 8176 | H32: 8760 | I32: 16936 | J32: 2012 | K32: 2
A33: East | B33: ABC | C33: 2012-02-14 | D33: Exxon | E33: 600 | F33: 11430 | G33: 5082 | H33: 6348 | I33: 11430 | J33: 2012 | K33: 2
A34: West | B34: ABC | C34: 2012-02-15 | D34: Wal-Mart | E34: 1000 | F34: 20250 | G34: 8470 | H34: 11780 | I34: 20250 | J34: 2012 | K34: 2
A35: Central | B35: ABC | C35: 2012-02-16 | D35: Wal-Mart | E35: 500 | F35: 10385 | G35: 4235 | H35: 6150 | I35: 10385 | J35: 2012 | K35: 2
A36: Central | B36: ABC | C36: 2012-02-17 | D36: Exxon | E36: 600 | F36: 11124 | G36: 5082 | H36: 6042 | I36: 11124 | J36: 2012 | K36: 2
A37: West | B37: ABC | C37: 2012-02-17 | D37: Ford | E37: 300 | F37: 5700 | G37: 2541 | H37: 3159 | I37: 5700 | J37: 2012 | K37: 2
A38: Central | B38: XYZ | C38: 2012-02-17 | D38: Wal-Mart | E38: 1000 | F38: 23810 | G38: 10220 | H38: 13590 | I38: 23810 | J38: 2012 | K38: 2
A39: Central | B39: XYZ | C39: 2012-02-20 | D39: Wal-Mart | E39: 500 | F39: 11525 | G39: 5110 | H39: 6415 | I39: 11525 | J39: 2012 | K39: 2
A40: Central | B40: DEF | C40: 2012-02-23 | D40: Chevron | E40: 900 | F40: 20610 | G40: 8856 | H40: 11754 | I40: 20610 | J40: 2012 | K40: 2
A41: East | B41: DEF | C41: 2012-02-23 | D41: Ford | E41: 600 | F41: 13206 | G41: 5904 | H41: 7302 | I41: 13206 | J41: 2012 | K41: 2
A42: Central | B42: XYZ | C42: 2012-02-23 | D42: Wal-Mart | E42: 1000 | F42: 25140 | G42: 10220 | H42: 14920 | I42: 25140 | J42: 2012 | K42: 2
A43: Central | B43: ABC | C43: 2012-02-24 | D43: Ford | E43: 900 | F43: 16209 | G43: 7623 | H43: 8586 | I43: 16209 | J43: 2012 | K43: 2
A44: East | B44: DEF | C44: 2012-02-24 | D44: Wal-Mart | E44: 400 | F44: 8708 | G44: 3936 | H44: 4772 | I44: 8708 | J44: 2012 | K44: 2
A45: East | B45: XYZ | C45: 2012-02-25 | D45: General Motors | E45: 900 | F45: 21456 | G45: 9198 | H45: 12258 | I45: 21456 | J45: 2012 | K45: 2
A46: West | B46: XYZ | C46: 2012-02-26 | D46: Wal-Mart | E46: 500 | F46: 10445 | G46: 5110 | H46: 5335 | I46: 10445 | J46: 2012 | K46: 2
A47: West | B47: DEF | C47: 2012-02-29 | D47: General Electric | E47: 600 | F47: 14472 | G47: 5904 | H47: 8568 | I47: 14472 | J47: 2012 | K47: 2
A48: Central | B48: XYZ | C48: 2012-03-01 | D48: Wal-Mart | E48: 200 | F48: 4262 | G48: 2044 | H48: 2218 | I48: 0 | J48: 2012 | K48: 3
A49: West | B49: ABC | C49: 2012-03-02 | D49: P&G | E49: 700 | F49: 12474 | G49: 5929 | H49: 6545 | I49: 0 | J49: 2012 | K49: 3
A50: West | B50: ABC | C50: 2012-03-03 | D50: Exxon | E50: 500 | F50: 10155 | G50: 4235 | H50: 5920 | I50: 0 | J50: 2012 | K50: 3
A51: Central | B51: DEF | C51: 2012-03-06 | D51: Wal-Mart | E51: 900 | F51: 19503 | G51: 8856 | H51: 10647 | I51: 0 | J51: 2012 | K51: 3
A52: East | B52: ABC | C52: 2012-03-09 | D52: IBM | E52: 100 | F52: 1819 | G52: 847 | H52: 972 | I52: 0 | J52: 2012 | K52: 3
A53: Central | B53: XYZ | C53: 2012-03-10 | D53: CitiGroup | E53: 1000 | F53: 24430 | G53: 10220 | H53: 14210 | I53: 0 | J53: 2012 | K53: 3
A54: East | B54: XYZ | C54: 2012-03-10 | D54: Wal-Mart | E54: 500 | F54: 10935 | G54: 5110 | H54: 5825 | I54: 0 | J54: 2012 | K54: 3
A55: East | B55: ABC | C55: 2012-03-12 | D55: Chevron | E55: 400 | F55: 8116 | G55: 3388 | H55: 4728 | I55: 0 | J55: 2012 | K55: 3
A56: Central | B56: XYZ | C56: 2012-03-13 | D56: CitiGroup | E56: 900 | F56: 18783 | G56: 9198 | H56: 9585 | I56: 0 | J56: 2012 | K56: 3
A57: Central | B57: ABC | C57: 2012-03-15 | D57: Wal-Mart | E57: 800 | F57: 16696 | G57: 6776 | H57: 9920 | I57: 0 | J57: 2012 | K57: 3
A58: East | B58: ABC | C58: 2012-03-16 | D58: General Electric | E58: 400 | F58: 7132 | G58: 3388 | H58: 3744 | I58: 0 | J58: 2012 | K58: 3
A59: East | B59: XYZ | C59: 2012-03-17 | D59: General Electric | E59: 200 | F59: 4784 | G59: 2044 | H59: 2740 | I59: 0 | J59: 2012 | K59: 3
A60: West | B60: XYZ | C60: 2012-03-18 | D60: AT&T | E60: 300 | F60: 6765 | G60: 3066 | H60: 3699 | I60: 0 | J60: 2012 | K60: 3
A61: Central | B61: ABC | C61: 2012-03-19 | D61: Wal-Mart | E61: 300 | F61: 5355 | G61: 2541 | H61: 2814 | I61: 0 | J61: 2012 | K61: 3
A62: Central | B62: ABC | C62: 2012-03-20 | D62: Wal-Mart | E62: 200 | F62: 3756 | G62: 1694 | H62: 2062 | I62: 0 | J62: 2012 | K62: 3
A63: East | B63: DEF | C63: 2012-03-21 | D63: General Motors | E63: 1000 | F63: 20090 | G63: 9840 | H63: 10250 | I63: 0 | J63: 2012 | K63: 3
A64: Central | B64: XYZ | C64: 2012-03-22 | D64: Ford | E64: 1000 | F64: 23090 | G64: 10220 | H64: 12870 | I64: 0 | J64: 2012 | K64: 3
A65: Central | B65: DEF | C65: 2012-03-24 | D65: AT&T | E65: 900 | F65: 21357 | G65: 8856 | H65: 12501 | I65: 0 | J65: 2012 | K65: 3
A66: Central | B66: ABC | C66: 2012-03-24 | D66: General Motors | E66: 300 | F66: 5358 | G66: 2541 | H66: 2817 | I66: 0 | J66: 2012 | K66: 3
A67: West | B67: DEF | C67: 2012-03-26 | D67: General Electric | E67: 800 | F67: 16016 | G67: 7872 | H67: 8144 | I67: =IF(MONTH(C67)<3,F67,0) -> 0 | J67: =YEAR(C67) -> 2012 | K67: =MONTH(C67) -> 3
A68: Central | B68: XYZ | C68: 2012-03-28 | D68: AT&T | E68: 600 | F68: 14448 | G68: 6132 | H68: 8316 | I68: 0 | J68: 2012 | K68: 3
A69: East | B69: ABC | C69: 2012-03-29 | D69: AT&T | E69: 300 | F69: 5370 | G69: 2541 | H69: 2829 | I69: 0 | J69: 2012 | K69: 3
A70: East | B70: DEF | C70: 2012-03-31 | D70: Exxon | E70: 400 | F70: 8632 | G70: 3936 | H70: 4696 | I70: 0 | J70: 2012 | K70: 3
A71: East | B71: DEF | C71: 2012-03-31 | D71: Exxon | E71: 300 | F71: 6588 | G71: 2952 | H71: 3636 | I71: 0 | J71: 2012 | K71: 3
A72: West | B72: XYZ | C72: 2012-03-31 | D72: P&G | E72: 800 | F72: 20408 | G72: 8176 | H72: 12232 | I72: 0 | J72: 2012 | K72: 3
A73: West | B73: XYZ | C73: 2012-04-01 | D73: Verizon | E73: 100 | F73: 2466 | G73: 1022 | H73: 1444 | I73: 0 | J73: 2012 | K73: 4
A74: East | B74: ABC | C74: 2012-04-03 | D74: Bank of America | E74: 700 | F74: 14686 | G74: 5929 | H74: 8757 | I74: 0 | J74: 2012 | K74: 4
A75: Central | B75: ABC | C75: 2012-04-03 | D75: General Electric | E75: 300 | F75: 5886 | G75: 2541 | H75: 3345 | I75: 0 | J75: 2012 | K75: 4
A76: East | B76: DEF | C76: 2012-04-06 | D76: Exxon | E76: 500 | F76: 12095 | G76: 4920 | H76: 7175 | I76: 0 | J76: 2012 | K76: 4
A77: East | B77: XYZ | C77: 2012-04-07 | D77: IBM | E77: 900 | F77: 19539 | G77: 9198 | H77: 10341 | I77: 0 | J77: 2012 | K77: 4
A78: West | B78: ABC | C78: 2012-04-08 | D78: General Electric | E78: 300 | F78: 6063 | G78: 2541 | H78: 3522 | I78: 0 | J78: 2012 | K78: 4
A79: East | B79: ABC | C79: 2012-04-09 | D79: General Electric | E79: 600 | F79: 11598 | G79: 5082 | H79: 6516 | I79: 0 | J79: 2012 | K79: 4
A80: Central | B80: ABC | C80: 2012-04-10 | D80: CitiGroup | E80: 400 | F80: 8016 | G80: 3388 | H80: 4628 | I80: 0 | J80: 2012 | K80: 4
A81: Central | B81: XYZ | C81: 2012-04-16 | D81: Motorola | E81: 200 | F81: 4948 | G81: 2044 | H81: 2904 | I81: 0 | J81: 2012 | K81: 4
A82: East | B82: XYZ | C82: 2012-04-16 | D82: Verizon | E82: 1000 | F82: 21880 | G82: 10220 | H82: 11660 | I82: 0 | J82: 2012 | K82: 4
A83: Central | B83: XYZ | C83: 2012-04-18 | D83: Wal-Mart | E83: 700 | F83: 15834 | G83: 7154 | H83: 8680 | I83: 0 | J83: 2012 | K83: 4
A84: East | B84: DEF | C84: 2012-04-19 | D84: Ford | E84: 100 | F84: 2457 | G84: 984 | H84: 1473 | I84: 0 | J84: 2012 | K84: 4
A85: East | B85: ABC | C85: 2012-04-20 | D85: Exxon | E85: 300 | F85: 5439 | G85: 2541 | H85: 2898 | I85: 0 | J85: 2012 | K85: 4
A86: East | B86: DEF | C86: 2012-04-21 | D86: Wal-Mart | E86: 500 | F86: 11435 | G86: 4920 | H86: 6515 | I86: 0 | J86: 2012 | K86: 4
A87: Central | B87: XYZ | C87: 2012-04-23 | D87: General Motors | E87: 1000 | F87: 22530 | G87: 10220 | H87: 12310 | I87: 0 | J87: 2012 | K87: 4
A88: East | B88: XYZ | C88: 2012-04-24 | D88: Ford | E88: 1000 | F88: 25060 | G88: 10220 | H88: 14840 | I88: 0 | J88: 2012 | K88: 4
A89: East | B89: XYZ | C89: 2012-04-25 | D89: Duke Energy | E89: 800 | F89: 18264 | G89: 8176 | H89: 10088 | I89: 0 | J89: 2012 | K89: 4
A90: East | B90: XYZ | C90: 2012-04-26 | D90: AT&T | E90: 200 | F90: 4124 | G90: 2044 | H90: 2080 | I90: 0 | J90: 2012 | K90: 4
A91: Central | B91: ABC | C91: 2012-04-27 | D91: Ford | E91: 200 | F91: 3802 | G91: 1694 | H91: 2108 | I91: 0 | J91: 2012 | K91: 4
A92: Central | B92: DEF | C92: 2012-04-27 | D92: Kroger | E92: 800 | F92: 19520 | G92: 7872 | H92: 11648 | I92: 0 | J92: 2012 | K92: 4
A93: West | B93: XYZ | C93: 2012-04-29 | D93: Bank of America | E93: 800 | F93: 19288 | G93: 8176 | H93: 11112 | I93: 0 | J93: 2012 | K93: 4
A94: East | B94: ABC | C94: 2012-05-01 | D94: AT&T | E94: 800 | F94: 15592 | G94: 6776 | H94: 8816 | I94: 0 | J94: 2012 | K94: 5
A95: West | B95: XYZ | C95: 2012-05-01 | D95: Bank of America | E95: 300 | F95: 6867 | G95: 3066 | H95: 3801 | I95: 0 | J95: 2012 | K95: 5
A96: East | B96: ABC | C96: 2012-05-03 | D96: AT&T | E96: 600 | F96: 12318 | G96: 5082 | H96: 7236 | I96: 0 | J96: 2012 | K96: 5
A97: West | B97: DEF | C97: 2012-05-03 | D97: Bank of America | E97: 400 | F97: 8052 | G97: 3936 | H97: 4116 | I97: 0 | J97: 2012 | K97: 5
A98: West | B98: DEF | C98: 2012-05-04 | D98: Wal-Mart | E98: 800 | F98: 17544 | G98: 7872 | H98: 9672 | I98: 0 | J98: 2012 | K98: 5
A99: East | B99: DEF | C99: 2012-05-05 | D99: IBM | E99: 700 | F99: 16765 | G99: 6888 | H99: 9877 | I99: 0 | J99: 2012 | K99: 5
A100: Central | B100: ABC | C100: 2012-05-07 | D100: Exxon | E100: 500 | F100: 8785 | G100: 4235 | H100: 4550 | I100: 0 | J100: 2012 | K100: 5
A101: East | B101: DEF | C101: 2012-05-08 | D101: Wal-Mart | E101: 700 | F101: 16772 | G101: 6888 | H101: 9884 | I101: 0 | J101: 2012 | K101: 5
A102: East | B102: ABC | C102: 2012-05-09 | D102: General Electric | E102: 500 | F102: 9380 | G102: 4235 | H102: 5145 | I102: 0 | J102: 2012 | K102: 5
A103: Central | B103: XYZ | C103: 2012-05-09 | D103: Wal-Mart | E103: 500 | F103: 12625 | G103: 5110 | H103: 7515 | I103: 0 | J103: 2012 | K103: 5
A104: East | B104: ABC | C104: 2012-05-10 | D104: Boeing | E104: 500 | F104: 9635 | G104: 4235 | H104: 5400 | I104: 0 | J104: 2012 | K104: 5
A105: West | B105: DEF | C105: 2012-05-12 | D105: Bank of America | E105: 300 | F105: 6156 | G105: 2952 | H105: 3204 | I105: 0 | J105: 2012 | K105: 5
A106: East | B106: DEF | C106: 2012-05-15 | D106: P&G | E106: 900 | F106: 17757 | G106: 8856 | H106: 8901 | I106: 0 | J106: 2012 | K106: 5
A107: West | B107: XYZ | C107: 2012-05-16 | D107: HP | E107: 200 | F107: 4846 | G107: 2044 | H107: 2802 | I107: 0 | J107: 2012 | K107: 5
A108: East | B108: ABC | C108: 2012-05-17 | D108: General Electric | E108: 600 | F108: 11208 | G108: 5082 | H108: 6126 | I108: 0 | J108: 2012 | K108: 5
A109: Central | B109: DEF | C109: 2012-05-18 | D109: AT&T | E109: 500 | F109: 10195 | G109: 4920 | H109: 5275 | I109: 0 | J109: 2012 | K109: 5
A110: West | B110: ABC | C110: 2012-05-19 | D110: General Motors | E110: 700 | F110: 12803 | G110: 5929 | H110: 6874 | I110: 0 | J110: 2012 | K110: 5
A111: East | B111: ABC | C111: 2012-05-19 | D111: Verizon | E111: 200 | F111: 4012 | G111: 1694 | H111: 2318 | I111: 0 | J111: 2012 | K111: 5
A112: East | B112: DEF | C112: 2012-05-20 | D112: Exxon | E112: 100 | F112: 2319 | G112: 984 | H112: 1335 | I112: 0 | J112: 2012 | K112: 5
A113: Central | B113: ABC | C113: 2012-05-20 | D113: General Motors | E113: 600 | F113: 11700 | G113: 5082 | H113: 6618 | I113: 0 | J113: 2012 | K113: 5
A114: East | B114: DEF | C114: 2012-05-22 | D114: Exxon | E114: 600 | F114: 12048 | G114: 5904 | H114: 6144 | I114: 0 | J114: 2012 | K114: 5
A115: East | B115: XYZ | C115: 2012-05-24 | D115: IBM | E115: 700 | F115: 14469 | G115: 7154 | H115: 7315 | I115: 0 | J115: 2012 | K115: 5
A116: West | B116: ABC | C116: 2012-05-25 | D116: Exxon | E116: 900 | F116: 17964 | G116: 7623 | H116: 10341 | I116: 0 | J116: 2012 | K116: 5
A117: West | B117: ABC | C117: 2012-05-26 | D117: AT&T | E117: 700 | F117: 13412 | G117: 5929 | H117: 7483 | I117: 0 | J117: 2012 | K117: 5
A118: Central | B118: XYZ | C118: 2012-05-26 | D118: General Motors | E118: 300 | F118: 6660 | G118: 3066 | H118: 3594 | I118: 0 | J118: 2012 | K118: 5
A119: Central | B119: XYZ | C119: 2012-05-27 | D119: General Electric | E119: 900 | F119: 18918 | G119: 9198 | H119: 9720 | I119: 0 | J119: 2012 | K119: 5
A120: Central | B120: ABC | C120: 2012-05-28 | D120: General Motors | E120: 700 | F120: 13986 | G120: 5929 | H120: 8057 | I120: 0 | J120: 2012 | K120: 5
A121: Central | B121: DEF | C121: 2012-05-30 | D121: IBM | E121: 1000 | F121: 20480 | G121: 9840 | H121: 10640 | I121: 0 | J121: 2012 | K121: 5
A122: Central | B122: XYZ | C122: 2012-06-02 | D122: Wal-Mart | E122: 200 | F122: 4264 | G122: 2044 | H122: 2220 | I122: 0 | J122: 2012 | K122: 6
A123: East | B123: DEF | C123: 2012-06-03 | D123: Sears | E123: 200 | F123: 4282 | G123: 1968 | H123: 2314 | I123: 0 | J123: 2012 | K123: 6
A124: Central | B124: XYZ | C124: 2012-06-04 | D124: IBM | E124: 500 | F124: 12135 | G124: 5110 | H124: 7025 | I124: 0 | J124: 2012 | K124: 6
A125: Central | B125: DEF | C125: 2012-06-06 | D125: IBM | E125: 200 | F125: 4286 | G125: 1968 | H125: 2318 | I125: 0 | J125: 2012 | K125: 6
A126: East | B126: XYZ | C126: 2012-06-08 | D126: Verizon | E126: 500 | F126: 10650 | G126: 5110 | H126: 5540 | I126: 0 | J126: 2012 | K126: 6
A127: East | B127: ABC | C127: 2012-06-09 | D127: Verizon | E127: 1000 | F127: 19630 | G127: 8470 | H127: 11160 | I127: 0 | J127: 2012 | K127: 6
A128: Central | B128: ABC | C128: 2012-06-10 | D128: General Electric | E128: 700 | F128: 12838 | G128: 5929 | H128: 6909 | I128: 0 | J128: 2012 | K128: 6
A129: West | B129: ABC | C129: 2012-06-11 | D129: Ford | E129: 200 | F129: 3856 | G129: 1694 | H129: 2162 | I129: 0 | J129: 2012 | K129: 6
A130: Central | B130: DEF | C130: 2012-06-15 | D130: SBC Communications | E130: 1000 | F130: 22140 | G130: 9840 | H130: 12300 | I130: 0 | J130: 2012 | K130: 6
A131: Central | B131: ABC | C131: 2012-06-19 | D131: IBM | E131: 500 | F131: 10330 | G131: 4235 | H131: 6095 | I131: =IF(MONTH(C131)<3,F131,0) -> 0 | J131: =YEAR(C131) -> 2012 | K131: =MONTH(C131) -> 6
A132: West | B132: ABC | C132: 2012-06-20 | D132: Exxon | E132: 100 | F132: 1882 | G132: 847 | H132: 1035 | I132: 0 | J132: 2012 | K132: 6
A133: Central | B133: DEF | C133: 2012-06-21 | D133: Ford | E133: 100 | F133: 2221 | G133: 984 | H133: 1237 | I133: 0 | J133: 2012 | K133: 6
A134: Central | B134: DEF | C134: 2012-06-22 | D134: Bank of America | E134: 800 | F134: 15856 | G134: 7872 | H134: 7984 | I134: 0 | J134: 2012 | K134: 6
A135: Central | B135: ABC | C135: 2012-06-22 | D135: Exxon | E135: 700 | F135: 13734 | G135: 5929 | H135: 7805 | I135: 0 | J135: 2012 | K135: 6
A136: Central | B136: DEF | C136: 2012-06-23 | D136: State Farm | E136: 200 | F136: 4754 | G136: 1968 | H136: 2786 | I136: 0 | J136: 2012 | K136: 6
A137: Central | B137: DEF | C137: 2012-06-26 | D137: Exxon | E137: 100 | F137: 2231 | G137: 984 | H137: 1247 | I137: 0 | J137: 2012 | K137: 6
A138: Central | B138: XYZ | C138: 2012-06-28 | D138: General Electric | E138: 900 | F138: 21960 | G138: 9198 | H138: 12762 | I138: 0 | J138: 2012 | K138: 6
A139: Central | B139: XYZ | C139: 2012-06-29 | D139: Lucent | E139: 300 | F139: 7167 | G139: 3066 | H139: 4101 | I139: 0 | J139: 2012 | K139: 6
A140: East | B140: XYZ | C140: 2012-06-29 | D140: Wal-Mart | E140: 900 | F140: 22716 | G140: 9198 | H140: 13518 | I140: 0 | J140: 2012 | K140: 6
A141: East | B141: XYZ | C141: 2012-06-30 | D141: AT&T | E141: 900 | F141: 19062 | G141: 9198 | H141: 9864 | I141: 0 | J141: 2012 | K141: 6
A142: West | B142: XYZ | C142: 2012-07-01 | D142: General Motors | E142: 300 | F142: 7593 | G142: 3066 | H142: 4527 | I142: 0 | J142: 2012 | K142: 7
A143: East | B143: DEF | C143: 2012-07-04 | D143: Exxon | E143: 900 | F143: 21168 | G143: 8856 | H143: 12312 | I143: 0 | J143: 2012 | K143: 7
A144: West | B144: XYZ | C144: 2012-07-06 | D144: Boeing | E144: 1000 | F144: 24130 | G144: 10220 | H144: 13910 | I144: 0 | J144: 2012 | K144: 7
A145: Central | B145: XYZ | C145: 2012-07-07 | D145: Sears | E145: 400 | F145: 8876 | G145: 4088 | H145: 4788 | I145: 0 | J145: 2012 | K145: 7
A146: East | B146: DEF | C146: 2012-07-10 | D146: General Electric | E146: 900 | F146: 21555 | G146: 8856 | H146: 12699 | I146: 0 | J146: 2012 | K146: 7
A147: Central | B147: XYZ | C147: 2012-07-11 | D147: Ford | E147: 700 | F147: 15876 | G147: 7154 | H147: 8722 | I147: 0 | J147: 2012 | K147: 7
A148: East | B148: ABC | C148: 2012-07-11 | D148: IBM | E148: 300 | F148: 5967 | G148: 2541 | H148: 3426 | I148: 0 | J148: 2012 | K148: 7
A149: East | B149: XYZ | C149: 2012-07-13 | D149: Bank of America | E149: 1000 | F149: 25350 | G149: 10220 | H149: 15130 | I149: 0 | J149: 2012 | K149: 7
A150: West | B150: ABC | C150: 2012-07-14 | D150: Home Depot | E150: 200 | F150: 4158 | G150: 1694 | H150: 2464 | I150: 0 | J150: 2012 | K150: 7
A151: Central | B151: DEF | C151: 2012-07-14 | D151: IBM | E151: 500 | F151: 11545 | G151: 4920 | H151: 6625 | I151: 0 | J151: 2012 | K151: 7
A152: West | B152: ABC | C152: 2012-07-16 | D152: General Motors | E152: 600 | F152: 12684 | G152: 5082 | H152: 7602 | I152: 0 | J152: 2012 | K152: 7
A153: East | B153: ABC | C153: 2012-07-18 | D153: Wal-Mart | E153: 1000 | F153: 18660 | G153: 8470 | H153: 10190 | I153: 0 | J153: 2012 | K153: 7
A154: Central | B154: DEF | C154: 2012-07-19 | D154: AT&T | E154: 500 | F154: 11660 | G154: 4920 | H154: 6740 | I154: 0 | J154: 2012 | K154: 7
A155: East | B155: DEF | C155: 2012-07-22 | D155: General Motors | E155: 800 | F155: 15816 | G155: 7872 | H155: 7944 | I155: 0 | J155: 2012 | K155: 7
A156: West | B156: XYZ | C156: 2012-07-23 | D156: Lucent | E156: 1000 | F156: 23890 | G156: 10220 | H156: 13670 | I156: 0 | J156: 2012 | K156: 7
A157: West | B157: DEF | C157: 2012-07-24 | D157: Verizon | E157: 600 | F157: 13866 | G157: 5904 | H157: 7962 | I157: 0 | J157: 2012 | K157: 7
A158: East | B158: ABC | C158: 2012-07-25 | D158: HP | E158: 1000 | F158: 17840 | G158: 8470 | H158: 9370 | I158: 0 | J158: 2012 | K158: 7
A159: East | B159: ABC | C159: 2012-07-25 | D159: Wal-Mart | E159: 800 | F159: 13936 | G159: 6776 | H159: 7160 | I159: 0 | J159: 2012 | K159: 7
A160: East | B160: XYZ | C160: 2012-07-26 | D160: General Electric | E160: 600 | F160: 12984 | G160: 6132 | H160: 6852 | I160: 0 | J160: 2012 | K160: 7
A161: Central | B161: DEF | C161: 2012-07-27 | D161: CitiGroup | E161: 1000 | F161: 21800 | G161: 9840 | H161: 11960 | I161: 0 | J161: 2012 | K161: 7
A162: Central | B162: ABC | C162: 2012-07-27 | D162: Wal-Mart | E162: 300 | F162: 5508 | G162: 2541 | H162: 2967 | I162: 0 | J162: 2012 | K162: 7
A163: East | B163: XYZ | C163: 2012-07-30 | D163: Exxon | E163: 400 | F163: 9704 | G163: 4088 | H163: 5616 | I163: 0 | J163: 2012 | K163: 7
A164: West | B164: XYZ | C164: 2012-07-31 | D164: Home Depot | E164: 600 | F164: 13962 | G164: 6132 | H164: 7830 | I164: 0 | J164: 2012 | K164: 7
A165: Central | B165: ABC | C165: 2012-08-01 | D165: Exxon | E165: 700 | F165: 13433 | G165: 5929 | H165: 7504 | I165: 0 | J165: 2012 | K165: 8
A166: Central | B166: ABC | C166: 2012-08-02 | D166: Bank of America | E166: 800 | F166: 15288 | G166: 6776 | H166: 8512 | I166: 0 | J166: 2012 | K166: 8
A167: Central | B167: XYZ | C167: 2012-08-02 | D167: General Motors | E167: 900 | F167: 19584 | G167: 9198 | H167: 10386 | I167: 0 | J167: 2012 | K167: 8
A168: Central | B168: XYZ | C168: 2012-08-03 | D168: General Electric | E168: 100 | F168: 2320 | G168: 1022 | H168: 1298 | I168: 0 | J168: 2012 | K168: 8
A169: West | B169: DEF | C169: 2012-08-08 | D169: AT&T | E169: 800 | F169: 16936 | G169: 7872 | H169: 9064 | I169: 0 | J169: 2012 | K169: 8
A170: East | B170: ABC | C170: 2012-08-10 | D170: Ford | E170: 300 | F170: 6138 | G170: 2541 | H170: 3597 | I170: 0 | J170: 2012 | K170: 8
A171: West | B171: DEF | C171: 2012-08-10 | D171: IBM | E171: 600 | F171: 12030 | G171: 5904 | H171: 6126 | I171: 0 | J171: 2012 | K171: 8
A172: West | B172: XYZ | C172: 2012-08-12 | D172: Bank of America | E172: 400 | F172: 9384 | G172: 4088 | H172: 5296 | I172: 0 | J172: 2012 | K172: 8
A173: East | B173: ABC | C173: 2012-08-13 | D173: Exxon | E173: 300 | F173: 5904 | G173: 2541 | H173: 3363 | I173: 0 | J173: 2012 | K173: 8
A174: Central | B174: ABC | C174: 2012-08-15 | D174: Exxon | E174: 1000 | F174: 21120 | G174: 8470 | H174: 12650 | I174: 0 | J174: 2012 | K174: 8
A175: East | B175: XYZ | C175: 2012-08-16 | D175: Bank of America | E175: 900 | F175: 18684 | G175: 9198 | H175: 9486 | I175: 0 | J175: 2012 | K175: 8
A176: East | B176: ABC | C176: 2012-08-16 | D176: Ford | E176: 100 | F176: 1836 | G176: 847 | H176: 989 | I176: 0 | J176: 2012 | K176: 8
A177: East | B177: XYZ | C177: 2012-08-18 | D177: AT&T | E177: 600 | F177: 15006 | G177: 6132 | H177: 8874 | I177: 0 | J177: 2012 | K177: 8
A178: West | B178: DEF | C178: 2012-08-18 | D178: CitiGroup | E178: 900 | F178: 19989 | G178: 8856 | H178: 11133 | I178: 0 | J178: 2012 | K178: 8
A179: East | B179: ABC | C179: 2012-08-21 | D179: Ford | E179: 100 | F179: 1913 | G179: 847 | H179: 1066 | I179: 0 | J179: 2012 | K179: 8
A180: West | B180: XYZ | C180: 2012-08-21 | D180: General Electric | E180: 400 | F180: 8744 | G180: 4088 | H180: 4656 | I180: 0 | J180: 2012 | K180: 8
A181: West | B181: XYZ | C181: 2012-08-21 | D181: Motorola | E181: 800 | F181: 17856 | G181: 8176 | H181: 9680 | I181: 0 | J181: 2012 | K181: 8
A182: East | B182: XYZ | C182: 2012-08-22 | D182: CitiGroup | E182: 900 | F182: 19368 | G182: 9198 | H182: 10170 | I182: 0 | J182: 2012 | K182: 8
A183: East | B183: ABC | C183: 2012-08-23 | D183: Kroger | E183: 100 | F183: 1819 | G183: 847 | H183: 972 | I183: 0 | J183: 2012 | K183: 8
A184: East | B184: XYZ | C184: 2012-08-24 | D184: AT&T | E184: 500 | F184: 10990 | G184: 5110 | H184: 5880 | I184: 0 | J184: 2012 | K184: 8
A185: Central | B185: XYZ | C185: 2012-08-24 | D185: AT&T | E185: 200 | F185: 4440 | G185: 2044 | H185: 2396 | I185: 0 | J185: 2012 | K185: 8
A186: Central | B186: ABC | C186: 2012-08-25 | D186: Verizon | E186: 300 | F186: 6309 | G186: 2541 | H186: 3768 | I186: 0 | J186: 2012 | K186: 8
A187: West | B187: DEF | C187: 2012-08-26 | D187: Bank of America | E187: 800 | F187: 18904 | G187: 7872 | H187: 11032 | I187: 0 | J187: 2012 | K187: 8
A188: West | B188: XYZ | C188: 2012-08-28 | D188: AIG | E188: 800 | F188: 18072 | G188: 8176 | H188: 9896 | I188: 0 | J188: 2012 | K188: 8
A189: Central | B189: ABC | C189: 2012-08-28 | D189: Wal-Mart | E189: 100 | F189: 2012 | G189: 847 | H189: 1165 | I189: 0 | J189: 2012 | K189: 8
A190: West | B190: ABC | C190: 2012-08-31 | D190: Ford | E190: 500 | F190: 10295 | G190: 4235 | H190: 6060 | I190: 0 | J190: 2012 | K190: 8
A191: Central | B191: ABC | C191: 2012-09-01 | D191: Ford | E191: 400 | F191: 7944 | G191: 3388 | H191: 4556 | I191: 0 | J191: 2012 | K191: 9
A192: West | B192: ABC | C192: 2012-09-02 | D192: IBM | E192: 100 | F192: 1957 | G192: 847 | H192: 1110 | I192: 0 | J192: 2012 | K192: 9
A193: East | B193: DEF | C193: 2012-09-06 | D193: AT&T | E193: 600 | F193: 12756 | G193: 5904 | H193: 6852 | I193: 0 | J193: 2012 | K193: 9
A194: Central | B194: DEF | C194: 2012-09-06 | D194: Verizon | E194: 700 | F194: 15680 | G194: 6888 | H194: 8792 | I194: 0 | J194: 2012 | K194: 9
A195: Central | B195: ABC | C195: 2012-09-07 | D195: Exxon | E195: 300 | F195: 5826 | G195: 2541 | H195: 3285 | I195: =IF(MONTH(C195)<3,F195,0) -> 0 | J195: =YEAR(C195) -> 2012 | K195: =MONTH(C195) -> 9
A196: East | B196: XYZ | C196: 2012-09-09 | D196: CitiGroup | E196: 800 | F196: 20008 | G196: 8176 | H196: 11832 | I196: 0 | J196: 2012 | K196: 9
A197: East | B197: ABC | C197: 2012-09-10 | D197: CitiGroup | E197: 300 | F197: 5457 | G197: 2541 | H197: 2916 | I197: 0 | J197: 2012 | K197: 9
A198: East | B198: ABC | C198: 2012-09-11 | D198: Exxon | E198: 600 | F198: 12330 | G198: 5082 | H198: 7248 | I198: 0 | J198: 2012 | K198: 9
A199: East | B199: DEF | C199: 2012-09-14 | D199: AT&T | E199: 500 | F199: 11845 | G199: 4920 | H199: 6925 | I199: 0 | J199: 2012 | K199: 9
A200: Central | B200: DEF | C200: 2012-09-15 | D200: Duke Energy | E200: 800 | F200: 16784 | G200: 7872 | H200: 8912 | I200: 0 | J200: 2012 | K200: 9
... 372 more rows
